{"text_format":"3","workbook":"xlsx","n_sheets":6,"sheets":["Nadzorna plošča","Prodaja","Dohodek","Stroški","Davki","Kategorije"],"not_rendered":{"images":1,"defined_names":34},"read":"whole","date_system":"1900"}

{"sheet":"Nadzorna plošča","index":0,"n_rows":20,"n_cols":8,"rows_kept":20,"merged":[[0,2,0,4],[0,6,3,7],[5,1,5,7]]}
[null,"Bilanca uspeha","Za [Mesec ali leto], ki se konča [Dan. mesec. leto]"]
[null,"Ime podjetja","Navedeno v 000"]
[null,"Trenutna bruto marža [L/J]",{"$f":"IFERROR(IF(Skupaj_bruto_dobiček=0,\"-\",Skupaj_bruto_dobiček/Skupaj_prihodek_od_prodaje),\"-\")","v":"-"}]
[null,"Trenutna donosnost prodaje [T/J]",{"$f":"IFERROR(IF(Neto_dobiček=0,\"-\",Neto_dobiček/Skupaj_prihodek_od_prodaje),\"-\")","v":"-"}]
[]
[null,"Ne spreminjajte kategorij na tem delovnem listu, sicer lahko poškodujete formule. Če želite dodati kategorije in posodobiti vnose na ustreznih delovnih listih, uporabite delovni list »Kategorija«. Ta delovni list se samodejno posodobi."]
[null,"Povzetek","Skupno prejšnje obdobje","Skupni proračun","Skupno trenutno\nObdobje","Skupno trenutno obdobje kot % prodaje","Skupni % spremembe od prejšnjega obdobja","Skupni % spremembe od proračuna"]
[null,"Skupni prihodek od prodaje [J]",{"$f":"SUMIFS(Prihodek_od_prodaje1[Prejšnje obdobje],Prihodek_od_prodaje1[Vrsta prihodka],\"Prihodek od prodaje\")","v":0},{"$f":"SUMIFS(Prihodek_od_prodaje1[Proračun],Prihodek_od_prodaje1[Vrsta prihodka],\"Prihodek od prodaje\")","v":0},{"$f":"SUMIFS(Prihodek_od_prodaje1[Trenutno obdobje],Prihodek_od_prodaje1[Vrsta prihodka],\"Prihodek od prodaje\")","v":0},{"$f":"SUMIFS(Prihodek_od_prodaje1[Trenutno obdobje kot % prodaje],Prihodek_od_prodaje1[Vrsta prihodka],\"Prihodek od prodaje\")","v":{"v":0,"d":"0.00%"}},{"$f":"SUMIFS(Prihodek_od_prodaje1[% spremembe od prejšnjega obdobja],Prihodek_od_prodaje1[Vrsta prihodka],\"Prihodek od prodaje\")","v":{"v":0,"d":"0.00%"}},{"$f":"SUMIFS(Prihodek_od_prodaje1[% spremembe od proračuna],Prihodek_od_prodaje1[Vrsta prihodka],\"Prihodek od prodaje\")","v":{"v":0,"d":"0.00%"}}]
[null,"Skupni strošek prodaje [K]",{"$f":"SUMIFS(Prihodek_od_prodaje1[Prejšnje obdobje],Prihodek_od_prodaje1[Vrsta prihodka],\"Stroški prodaje\")","v":0},{"$f":"SUMIFS(Prihodek_od_prodaje1[Proračun],Prihodek_od_prodaje1[Vrsta prihodka],\"Stroški prodaje\")","v":0},{"$f":"SUMIFS(Prihodek_od_prodaje1[Trenutno obdobje],Prihodek_od_prodaje1[Vrsta prihodka],\"Stroški prodaje\")","v":0},{"$f":"SUMIFS(Prihodek_od_prodaje1[Trenutno obdobje kot % prodaje],Prihodek_od_prodaje1[Vrsta prihodka],\"Stroški prodaje\")","v":{"v":0,"d":"0.00%"}},{"$f":"SUMIFS(Prihodek_od_prodaje1[% spremembe od prejšnjega obdobja],Prihodek_od_prodaje1[Vrsta prihodka],\"Stroški prodaje\")","v":{"v":0,"d":"0.00%"}},{"$f":"SUMIFS(Prihodek_od_prodaje1[% spremembe od proračuna],Prihodek_od_prodaje1[Vrsta prihodka],\"Stroški prodaje\")","v":{"v":0,"d":"0.00%"}}]
[null,"Skupni stroški prodaje in trženja [M]",{"$f":"SUMIFS(OperatingExpenses[Prejšnje obdobje],OperatingExpenses[Vrsta stroška],\"Prodaja in trženje\")","v":0},{"$f":"SUMIFS(OperatingExpenses[Proračun],OperatingExpenses[Vrsta stroška],\"Prodaja in trženje\")","v":0},{"$f":"SUMIFS(OperatingExpenses[Trenutno obdobje],OperatingExpenses[Vrsta stroška],\"Prodaja in trženje\")","v":0},{"$f":"SUMIFS(OperatingExpenses[Trenutno obdobje kot % prodaje],OperatingExpenses[Vrsta stroška],\"Prodaja in trženje\")","v":{"v":0,"d":"0.00%"}},{"$f":"SUMIFS(OperatingExpenses[% spremembe od prejšnjega obdobja],OperatingExpenses[Vrsta stroška],\"Prodaja in trženje\")","v":{"v":0,"d":"0.00%"}},{"$f":"SUMIFS(OperatingExpenses[% spremembe od proračuna],OperatingExpenses[Vrsta stroška],\"Prodaja in trženje\")","v":{"v":0,"d":"0.00%"}}]
[null,"Skupni stroški za raziskave in razvoj [N]",{"$f":"SUMIFS(OperatingExpenses[Prejšnje obdobje],OperatingExpenses[Vrsta stroška],\"Raziskave in razvoj\")","v":0},{"$f":"SUMIFS(OperatingExpenses[Proračun],OperatingExpenses[Vrsta stroška],\"Raziskave in razvoj\")","v":0},{"$f":"SUMIFS(OperatingExpenses[Trenutno obdobje],OperatingExpenses[Vrsta stroška],\"Raziskave in razvoj\")","v":0},{"$f":"SUMIFS(OperatingExpenses[Trenutno obdobje kot % prodaje],OperatingExpenses[Vrsta stroška],\"Raziskave in razvoj\")","v":{"v":0,"d":"0.00%"}},{"$f":"SUMIFS(OperatingExpenses[% spremembe od prejšnjega obdobja],OperatingExpenses[Vrsta stroška],\"Raziskave in razvoj\")","v":{"v":0,"d":"0.00%"}},{"$f":"SUMIFS(OperatingExpenses[% spremembe od proračuna],OperatingExpenses[Vrsta stroška],\"Raziskave in razvoj\")","v":{"v":0,"d":"0.00%"}}]
[null,"Skupni splošni in administrativni stroški [O]",{"$f":"SUMIFS(OperatingExpenses[Prejšnje obdobje],OperatingExpenses[Vrsta stroška],\"Splošno in administracija\")","v":0},{"$f":"SUMIFS(OperatingExpenses[Proračun],OperatingExpenses[Vrsta stroška],\"Splošno in administracija\")","v":0},{"$f":"SUMIFS(OperatingExpenses[Trenutno obdobje],OperatingExpenses[Vrsta stroška],\"Splošno in administracija\")","v":0},{"$f":"SUMIFS(OperatingExpenses[Trenutno obdobje kot % prodaje],OperatingExpenses[Vrsta stroška],\"Splošno in administracija\")","v":{"v":0,"d":"0.00%"}},{"$f":"SUMIFS(OperatingExpenses[% spremembe od prejšnjega obdobja],OperatingExpenses[Vrsta stroška],\"Splošno in administracija\")","v":{"v":0,"d":"0.00%"}},{"$f":"SUMIFS(OperatingExpenses[% spremembe od proračuna],OperatingExpenses[Vrsta stroška],\"Splošno in administracija\")","v":{"v":0,"d":"0.00%"}}]
[null,"Skupni drugi operativni stroški [P]",{"$f":"OperatingExpenses[[#Totals],[Prejšnje obdobje]]-SUM(C10:C12)","v":0},{"$f":"OperatingExpenses[[#Totals],[Proračun]]-SUM(D10:D12)","v":0},{"$f":"OperatingExpenses[[#Totals],[Trenutno obdobje]]-SUM(E10:E12)","v":0},{"$f":"OperatingExpenses[[#Totals],[Trenutno obdobje kot % prodaje]]-SUM(F10:F12)","v":{"v":0,"d":"0.00%"}},{"$f":"OperatingExpenses[[#Totals],[% spremembe od prejšnjega obdobja]]-SUM(G10:G12)","v":{"v":0,"d":"0.00%"}},{"$f":"OperatingExpenses[[#Totals],[% spremembe od proračuna]]-SUM(H10:H12)","v":{"v":0,"d":"0.00%"}}]
[null,"Drugi dohodki [S]",{"$f":"Dohodek[[#Totals],[Prejšnje obdobje]]","v":0},{"$f":"Dohodek[[#Totals],[Proračun]]","v":0},{"$f":"Dohodek[[#Totals],[Trenutno obdobje]]","v":0},{"$f":"Dohodek[[#Totals],[Trenutno obdobje kot % prodaje]]","v":{"v":0,"d":"0.00%"}},{"$f":"Dohodek[[#Totals],[% spremembe od prejšnjega obdobja]]","v":{"v":0,"d":"0.00%"}},{"$f":"Dohodek[[#Totals],[% spremembe od proračuna]]","v":{"v":0,"d":"0.00%"}}]
[null,"Skupni davki [T]",{"$f":"Davki[[#Totals],[Prejšnje obdobje]]","v":0},{"$f":"Davki[[#Totals],[Proračun]]","v":0},{"$f":"Davki[[#Totals],[Trenutno obdobje]]","v":0},{"$f":"Davki[[#Totals],[Trenutno obdobje kot % prodaje]]","v":{"v":0,"d":"0.00%"}},{"$f":"Davki[[#Totals],[% spremembe od prejšnjega obdobja]]","v":{"v":0,"d":"0.00%"}},{"$f":"Davki[[#Totals],[% spremembe od proračuna]]","v":{"v":0,"d":"0.00%"}}]
[]
[null,"Bruto dobiček [L=J-K]",{"$f":"IFERROR(C8-C9,\"-\")","v":0},{"$f":"IFERROR(D8-D9,\"-\")","v":0},{"$f":"IFERROR(Skupaj_prihodek_od_prodaje-Skupaj_strošek_prodaje,\"-\")","v":0},{"$f":"IFERROR(IF(Skupaj_prihodek_od_prodaje=0,\"0.00%\",Skupaj_bruto_dobiček/Skupaj_prihodek_od_prodaje),\"-\")","v":"0.00%"},{"$f":"IFERROR(IF(C17=Skupaj_bruto_dobiček,0,IF(Skupaj_bruto_dobiček>C17,ABS((Skupaj_bruto_dobiček/C17)-1),IF(AND(Skupaj_bruto_dobiček<C17,C17<0),-((Skupaj_bruto_dobiček/C17)-1),(Skupaj_bruto_dobiček/C17)-1))),\"-\")","v":{"v":0,"d":"0.00%"}},{"$f":"IFERROR(IF(D17=Skupaj_bruto_dobiček,0,IF(Skupaj_bruto_dobiček>D17,ABS((Skupaj_bruto_dobiček/D17)-1),IF(AND(Skupaj_bruto_dobiček<D17,D17<0),-((Skupaj_bruto_dobiček/D17)-1),(Skupaj_bruto_dobiček/D17)-1))),\"-\")","v":{"v":0,"d":"0.00%"}}]
[null,"Skupni operativni stroški [Q=M+N+O+P]",{"$f":"IFERROR(C10+C11+C12+C13,\"-\")","v":0},{"$f":"IFERROR(D10+D11+D12+D13,\"-\")","v":0},{"$f":"IFERROR(Skupaj_prodaja_in_trženje+Skupaj_raziskave_in_razvoj+Skupaj_splošni_in_administrativni+Skupaj_drugi_stroški,\"-\")","v":0},{"$f":"IFERROR(IF(Skupaj_prihodek_od_prodaje=0,\"0.00%\",Skupaj_operativni_stroški/Skupaj_prihodek_od_prodaje),\"-\")","v":"0.00%"},{"$f":"IFERROR(IF(C18=Skupaj_operativni_stroški,0,IF(Skupaj_operativni_stroški>C18,ABS((Skupaj_operativni_stroški/C18)-1),IF(AND(Skupaj_operativni_stroški<C18,C18<0),-((Skupaj_operativni_stroški/C18)-1),(Skupaj_operativni_stroški/C18)-1))),\"-\")","v":{"v":0,"d":"0.00%"}},{"$f":"IFERROR(IF(D18=Skupaj_operativni_stroški,0,IF(Skupaj_operativni_stroški>D18,ABS((Skupaj_operativni_stroški/D18)-1),IF(AND(Skupaj_operativni_stroški<D18,D18<0),-((Skupaj_operativni_stroški/D18)-1),(Skupaj_operativni_stroški/D18)-1))),\"-\")","v":{"v":0,"d":"0.00%"}}]
[null,"Dohodek od operacij [R=L-Q]",{"$f":"IFERROR(C17-C18,\"-\")","v":0},{"$f":"IFERROR(D17-D18,\"-\")","v":0},{"$f":"IFERROR(Skupaj_bruto_dobiček-Skupaj_operativni_stroški,\"-\")","v":0},{"$f":"IFERROR(IF(Skupaj_prihodek_od_prodaje=0,\"0.00%\",Skupaj_dohodek_operacije/Skupaj_prihodek_od_prodaje),\"-\")","v":"0.00%"},{"$f":"IFERROR(IF(C19=Skupaj_dohodek_operacije,0,IF(Skupaj_dohodek_operacije>C19,ABS((Skupaj_dohodek_operacije/C19)-1),IF(AND(Skupaj_dohodek_operacije<C19,C19<0),-((Skupaj_dohodek_operacije/C19)-1),(Skupaj_dohodek_operacije/C19)-1))),\"-\")","v":{"v":0,"d":"0.00%"}},{"$f":"IFERROR(IF(D19=Skupaj_dohodek_operacije,0,IF(Skupaj_dohodek_operacije>D19,ABS((Skupaj_dohodek_operacije/D19)-1),IF(AND(Skupaj_dohodek_operacije<D19,D19<0),-((Skupaj_dohodek_operacije/D19)-1),(Skupaj_dohodek_operacije/D19)-1))),\"-\")","v":{"v":0,"d":"0.00%"}}]
[null,"Neto dobiček [U=R+S-T]",{"$f":"IFERROR(C19+C14-C15,\"-\")","v":0},{"$f":"IFERROR(D19+D14-D15,\"-\")","v":0},{"$f":"Skupaj_dohodek_operacije+Skupaj_drugi_dohodki-Skupaj_davki","v":0},{"$f":"IFERROR(IF(Skupaj_prihodek_od_prodaje=0,\"0.00%\",Neto_dobiček/Skupaj_prihodek_od_prodaje),\"-\")","v":"0.00%"},{"$f":"IFERROR(IF(C20=Neto_dobiček,0,IF(Neto_dobiček>C20,ABS((Neto_dobiček/C20)-1),IF(AND(Neto_dobiček<C20,C20<0),-((Neto_dobiček/C20)-1),(Neto_dobiček/C20)-1))),\"-\")","v":{"v":0,"d":"0.00%"}},{"$f":"IFERROR(IF(D20=Neto_dobiček,0,IF(Neto_dobiček>D20,ABS((Neto_dobiček/D20)-1),IF(AND(Neto_dobiček<D20,D20<0),-((Neto_dobiček/D20)-1),(Neto_dobiček/D20)-1))),\"-\")","v":{"v":0,"d":"0.00%"}}]

{"sheet":"Prodaja","index":1,"n_rows":13,"n_cols":9,"rows_kept":13,"merged":[[0,7,2,8]]}
[null,{"$f":"Naslov_delovnega_zvezka","v":"Bilanca uspeha"}]
[null,{"$f":"Ime_podjetja","v":"Ime podjetja"},"Navedeno v 000"]
[null,"Prihodek od prodaje",{"$f":"IFERROR(Prihodek_od_prodaje,\"-\")","v":0}]
[null,"Vrsta prihodka","Opis","Prejšnje obdobje","Proračun","Trenutno obdobje","Trenutno obdobje kot % prodaje","% spremembe od prejšnjega obdobja","% spremembe od proračuna"]
[null,"Prihodek od prodaje","Izdelek/storitev 1",{"$nulls":3},{"$f":"IFERROR(IF(Prihodek_od_prodaje1[[#Totals],[Trenutno obdobje]]=0,\"-\",Prihodek_od_prodaje1[[#This Row],[Trenutno obdobje]]/Prihodek_od_prodaje),\"-\")","v":"-"},{"$f":"IFERROR(IF(Prihodek_od_prodaje1[[#This Row],[Prejšnje obdobje]]=Prihodek_od_prodaje1[[#This Row],[Trenutno obdobje]],0,IF(Prihodek_od_prodaje1[[#This Row],[Trenutno obdobje]]>Prihodek_od_prodaje1[[#This Row],[Prejšnje obdobje]],ABS((Prihodek_od_prodaje1[[#This Row],[Trenutno obdobje]]/Prihodek_od_prodaje1[[#This Row],[Prejšnje obdobje]])-1),IF(AND(Prihodek_od_prodaje1[[#This Row],[Trenutno obdobje]]<Prihodek_od_prodaje1[[#This Row],[Prejšnje obdobje]],Prihodek_od_prodaje1[[#This Row],[Prejšnje obdobje]]<0),-((Prihodek_od_prodaje1[[#This Row],[Trenutno obdobje]]/Prihodek_od_prodaje1[[#This Row],[Prejšnje obdobje]])-1),(Prihodek_od_prodaje1[[#This Row],[Trenutno obdobje]]/Prihodek_od_prodaje1[[#This Row],[Prejšnje obdobje]])-1))),\"-\")","v":{"v":0,"d":"0.00%"}},{"$f":"IFERROR(IF(Prihodek_od_prodaje1[[#This Row],[Proračun]]=Prihodek_od_prodaje1[[#This Row],[Trenutno obdobje]],0,IF(Prihodek_od_prodaje1[[#This Row],[Trenutno obdobje]]>Prihodek_od_prodaje1[[#This Row],[Proračun]],ABS((Prihodek_od_prodaje1[[#This Row],[Trenutno obdobje]]/Prihodek_od_prodaje1[[#This Row],[Proračun]])-1),IF(AND(Prihodek_od_prodaje1[[#This Row],[Trenutno obdobje]]<Prihodek_od_prodaje1[[#This Row],[Proračun]],Prihodek_od_prodaje1[[#This Row],[Proračun]]<0),-((Prihodek_od_prodaje1[[#This Row],[Trenutno obdobje]]/Prihodek_od_prodaje1[[#This Row],[Proračun]])-1),(Prihodek_od_prodaje1[[#This Row],[Trenutno obdobje]]/Prihodek_od_prodaje1[[#This Row],[Proračun]])-1))),\"-\")","v":{"v":0,"d":"0.00%"}}]
[null,"Prihodek od prodaje","Izdelek/storitev 2",{"$nulls":3},{"$f":"IFERROR(IF(Prihodek_od_prodaje1[[#Totals],[Trenutno obdobje]]=0,\"-\",Prihodek_od_prodaje1[[#This Row],[Trenutno obdobje]]/Prihodek_od_prodaje),\"-\")","v":"-"},{"$f":"IFERROR(IF(Prihodek_od_prodaje1[[#This Row],[Prejšnje obdobje]]=Prihodek_od_prodaje1[[#This Row],[Trenutno obdobje]],0,IF(Prihodek_od_prodaje1[[#This Row],[Trenutno obdobje]]>Prihodek_od_prodaje1[[#This Row],[Prejšnje obdobje]],ABS((Prihodek_od_prodaje1[[#This Row],[Trenutno obdobje]]/Prihodek_od_prodaje1[[#This Row],[Prejšnje obdobje]])-1),IF(AND(Prihodek_od_prodaje1[[#This Row],[Trenutno obdobje]]<Prihodek_od_prodaje1[[#This Row],[Prejšnje obdobje]],Prihodek_od_prodaje1[[#This Row],[Prejšnje obdobje]]<0),-((Prihodek_od_prodaje1[[#This Row],[Trenutno obdobje]]/Prihodek_od_prodaje1[[#This Row],[Prejšnje obdobje]])-1),(Prihodek_od_prodaje1[[#This Row],[Trenutno obdobje]]/Prihodek_od_prodaje1[[#This Row],[Prejšnje obdobje]])-1))),\"-\")","v":{"v":0,"d":"0.00%"}},{"$f":"IFERROR(IF(Prihodek_od_prodaje1[[#This Row],[Proračun]]=Prihodek_od_prodaje1[[#This Row],[Trenutno obdobje]],0,IF(Prihodek_od_prodaje1[[#This Row],[Trenutno obdobje]]>Prihodek_od_prodaje1[[#This Row],[Proračun]],ABS((Prihodek_od_prodaje1[[#This Row],[Trenutno obdobje]]/Prihodek_od_prodaje1[[#This Row],[Proračun]])-1),IF(AND(Prihodek_od_prodaje1[[#This Row],[Trenutno obdobje]]<Prihodek_od_prodaje1[[#This Row],[Proračun]],Prihodek_od_prodaje1[[#This Row],[Proračun]]<0),-((Prihodek_od_prodaje1[[#This Row],[Trenutno obdobje]]/Prihodek_od_prodaje1[[#This Row],[Proračun]])-1),(Prihodek_od_prodaje1[[#This Row],[Trenutno obdobje]]/Prihodek_od_prodaje1[[#This Row],[Proračun]])-1))),\"-\")","v":{"v":0,"d":"0.00%"}}]
[null,"Prihodek od prodaje","Izdelek/storitev 3",{"$nulls":3},{"$f":"IFERROR(IF(Prihodek_od_prodaje1[[#Totals],[Trenutno obdobje]]=0,\"-\",Prihodek_od_prodaje1[[#This Row],[Trenutno obdobje]]/Prihodek_od_prodaje),\"-\")","v":"-"},{"$f":"IFERROR(IF(Prihodek_od_prodaje1[[#This Row],[Prejšnje obdobje]]=Prihodek_od_prodaje1[[#This Row],[Trenutno obdobje]],0,IF(Prihodek_od_prodaje1[[#This Row],[Trenutno obdobje]]>Prihodek_od_prodaje1[[#This Row],[Prejšnje obdobje]],ABS((Prihodek_od_prodaje1[[#This Row],[Trenutno obdobje]]/Prihodek_od_prodaje1[[#This Row],[Prejšnje obdobje]])-1),IF(AND(Prihodek_od_prodaje1[[#This Row],[Trenutno obdobje]]<Prihodek_od_prodaje1[[#This Row],[Prejšnje obdobje]],Prihodek_od_prodaje1[[#This Row],[Prejšnje obdobje]]<0),-((Prihodek_od_prodaje1[[#This Row],[Trenutno obdobje]]/Prihodek_od_prodaje1[[#This Row],[Prejšnje obdobje]])-1),(Prihodek_od_prodaje1[[#This Row],[Trenutno obdobje]]/Prihodek_od_prodaje1[[#This Row],[Prejšnje obdobje]])-1))),\"-\")","v":{"v":0,"d":"0.00%"}},{"$f":"IFERROR(IF(Prihodek_od_prodaje1[[#This Row],[Proračun]]=Prihodek_od_prodaje1[[#This Row],[Trenutno obdobje]],0,IF(Prihodek_od_prodaje1[[#This Row],[Trenutno obdobje]]>Prihodek_od_prodaje1[[#This Row],[Proračun]],ABS((Prihodek_od_prodaje1[[#This Row],[Trenutno obdobje]]/Prihodek_od_prodaje1[[#This Row],[Proračun]])-1),IF(AND(Prihodek_od_prodaje1[[#This Row],[Trenutno obdobje]]<Prihodek_od_prodaje1[[#This Row],[Proračun]],Prihodek_od_prodaje1[[#This Row],[Proračun]]<0),-((Prihodek_od_prodaje1[[#This Row],[Trenutno obdobje]]/Prihodek_od_prodaje1[[#This Row],[Proračun]])-1),(Prihodek_od_prodaje1[[#This Row],[Trenutno obdobje]]/Prihodek_od_prodaje1[[#This Row],[Proračun]])-1))),\"-\")","v":{"v":0,"d":"0.00%"}}]
[null,"Prihodek od prodaje","Izdelek/storitev 4",{"$nulls":3},{"$f":"IFERROR(IF(Prihodek_od_prodaje1[[#Totals],[Trenutno obdobje]]=0,\"-\",Prihodek_od_prodaje1[[#This Row],[Trenutno obdobje]]/Prihodek_od_prodaje),\"-\")","v":"-"},{"$f":"IFERROR(IF(Prihodek_od_prodaje1[[#This Row],[Prejšnje obdobje]]=Prihodek_od_prodaje1[[#This Row],[Trenutno obdobje]],0,IF(Prihodek_od_prodaje1[[#This Row],[Trenutno obdobje]]>Prihodek_od_prodaje1[[#This Row],[Prejšnje obdobje]],ABS((Prihodek_od_prodaje1[[#This Row],[Trenutno obdobje]]/Prihodek_od_prodaje1[[#This Row],[Prejšnje obdobje]])-1),IF(AND(Prihodek_od_prodaje1[[#This Row],[Trenutno obdobje]]<Prihodek_od_prodaje1[[#This Row],[Prejšnje obdobje]],Prihodek_od_prodaje1[[#This Row],[Prejšnje obdobje]]<0),-((Prihodek_od_prodaje1[[#This Row],[Trenutno obdobje]]/Prihodek_od_prodaje1[[#This Row],[Prejšnje obdobje]])-1),(Prihodek_od_prodaje1[[#This Row],[Trenutno obdobje]]/Prihodek_od_prodaje1[[#This Row],[Prejšnje obdobje]])-1))),\"-\")","v":{"v":0,"d":"0.00%"}},{"$f":"IFERROR(IF(Prihodek_od_prodaje1[[#This Row],[Proračun]]=Prihodek_od_prodaje1[[#This Row],[Trenutno obdobje]],0,IF(Prihodek_od_prodaje1[[#This Row],[Trenutno obdobje]]>Prihodek_od_prodaje1[[#This Row],[Proračun]],ABS((Prihodek_od_prodaje1[[#This Row],[Trenutno obdobje]]/Prihodek_od_prodaje1[[#This Row],[Proračun]])-1),IF(AND(Prihodek_od_prodaje1[[#This Row],[Trenutno obdobje]]<Prihodek_od_prodaje1[[#This Row],[Proračun]],Prihodek_od_prodaje1[[#This Row],[Proračun]]<0),-((Prihodek_od_prodaje1[[#This Row],[Trenutno obdobje]]/Prihodek_od_prodaje1[[#This Row],[Proračun]])-1),(Prihodek_od_prodaje1[[#This Row],[Trenutno obdobje]]/Prihodek_od_prodaje1[[#This Row],[Proračun]])-1))),\"-\")","v":{"v":0,"d":"0.00%"}}]
[null,"Stroški prodaje","Izdelek/storitev 1",{"$nulls":3},{"$f":"IFERROR(IF(Prihodek_od_prodaje1[[#Totals],[Trenutno obdobje]]=0,\"-\",Prihodek_od_prodaje1[[#This Row],[Trenutno obdobje]]/Prihodek_od_prodaje),\"-\")","v":"-"},{"$f":"IFERROR(IF(Prihodek_od_prodaje1[[#This Row],[Prejšnje obdobje]]=Prihodek_od_prodaje1[[#This Row],[Trenutno obdobje]],0,IF(Prihodek_od_prodaje1[[#This Row],[Trenutno obdobje]]>Prihodek_od_prodaje1[[#This Row],[Prejšnje obdobje]],ABS((Prihodek_od_prodaje1[[#This Row],[Trenutno obdobje]]/Prihodek_od_prodaje1[[#This Row],[Prejšnje obdobje]])-1),IF(AND(Prihodek_od_prodaje1[[#This Row],[Trenutno obdobje]]<Prihodek_od_prodaje1[[#This Row],[Prejšnje obdobje]],Prihodek_od_prodaje1[[#This Row],[Prejšnje obdobje]]<0),-((Prihodek_od_prodaje1[[#This Row],[Trenutno obdobje]]/Prihodek_od_prodaje1[[#This Row],[Prejšnje obdobje]])-1),(Prihodek_od_prodaje1[[#This Row],[Trenutno obdobje]]/Prihodek_od_prodaje1[[#This Row],[Prejšnje obdobje]])-1))),\"-\")","v":{"v":0,"d":"0.00%"}},{"$f":"IFERROR(IF(Prihodek_od_prodaje1[[#This Row],[Proračun]]=Prihodek_od_prodaje1[[#This Row],[Trenutno obdobje]],0,IF(Prihodek_od_prodaje1[[#This Row],[Trenutno obdobje]]>Prihodek_od_prodaje1[[#This Row],[Proračun]],ABS((Prihodek_od_prodaje1[[#This Row],[Trenutno obdobje]]/Prihodek_od_prodaje1[[#This Row],[Proračun]])-1),IF(AND(Prihodek_od_prodaje1[[#This Row],[Trenutno obdobje]]<Prihodek_od_prodaje1[[#This Row],[Proračun]],Prihodek_od_prodaje1[[#This Row],[Proračun]]<0),-((Prihodek_od_prodaje1[[#This Row],[Trenutno obdobje]]/Prihodek_od_prodaje1[[#This Row],[Proračun]])-1),(Prihodek_od_prodaje1[[#This Row],[Trenutno obdobje]]/Prihodek_od_prodaje1[[#This Row],[Proračun]])-1))),\"-\")","v":{"v":0,"d":"0.00%"}}]
[null,"Stroški prodaje","Izdelek/storitev 2",{"$nulls":3},{"$f":"IFERROR(IF(Prihodek_od_prodaje1[[#Totals],[Trenutno obdobje]]=0,\"-\",Prihodek_od_prodaje1[[#This Row],[Trenutno obdobje]]/Prihodek_od_prodaje),\"-\")","v":"-"},{"$f":"IFERROR(IF(Prihodek_od_prodaje1[[#This Row],[Prejšnje obdobje]]=Prihodek_od_prodaje1[[#This Row],[Trenutno obdobje]],0,IF(Prihodek_od_prodaje1[[#This Row],[Trenutno obdobje]]>Prihodek_od_prodaje1[[#This Row],[Prejšnje obdobje]],ABS((Prihodek_od_prodaje1[[#This Row],[Trenutno obdobje]]/Prihodek_od_prodaje1[[#This Row],[Prejšnje obdobje]])-1),IF(AND(Prihodek_od_prodaje1[[#This Row],[Trenutno obdobje]]<Prihodek_od_prodaje1[[#This Row],[Prejšnje obdobje]],Prihodek_od_prodaje1[[#This Row],[Prejšnje obdobje]]<0),-((Prihodek_od_prodaje1[[#This Row],[Trenutno obdobje]]/Prihodek_od_prodaje1[[#This Row],[Prejšnje obdobje]])-1),(Prihodek_od_prodaje1[[#This Row],[Trenutno obdobje]]/Prihodek_od_prodaje1[[#This Row],[Prejšnje obdobje]])-1))),\"-\")","v":{"v":0,"d":"0.00%"}},{"$f":"IFERROR(IF(Prihodek_od_prodaje1[[#This Row],[Proračun]]=Prihodek_od_prodaje1[[#This Row],[Trenutno obdobje]],0,IF(Prihodek_od_prodaje1[[#This Row],[Trenutno obdobje]]>Prihodek_od_prodaje1[[#This Row],[Proračun]],ABS((Prihodek_od_prodaje1[[#This Row],[Trenutno obdobje]]/Prihodek_od_prodaje1[[#This Row],[Proračun]])-1),IF(AND(Prihodek_od_prodaje1[[#This Row],[Trenutno obdobje]]<Prihodek_od_prodaje1[[#This Row],[Proračun]],Prihodek_od_prodaje1[[#This Row],[Proračun]]<0),-((Prihodek_od_prodaje1[[#This Row],[Trenutno obdobje]]/Prihodek_od_prodaje1[[#This Row],[Proračun]])-1),(Prihodek_od_prodaje1[[#This Row],[Trenutno obdobje]]/Prihodek_od_prodaje1[[#This Row],[Proračun]])-1))),\"-\")","v":{"v":0,"d":"0.00%"}}]
[null,"Stroški prodaje","Izdelek/storitev 3",{"$nulls":3},{"$f":"IFERROR(IF(Prihodek_od_prodaje1[[#Totals],[Trenutno obdobje]]=0,\"-\",Prihodek_od_prodaje1[[#This Row],[Trenutno obdobje]]/Prihodek_od_prodaje),\"-\")","v":"-"},{"$f":"IFERROR(IF(Prihodek_od_prodaje1[[#This Row],[Prejšnje obdobje]]=Prihodek_od_prodaje1[[#This Row],[Trenutno obdobje]],0,IF(Prihodek_od_prodaje1[[#This Row],[Trenutno obdobje]]>Prihodek_od_prodaje1[[#This Row],[Prejšnje obdobje]],ABS((Prihodek_od_prodaje1[[#This Row],[Trenutno obdobje]]/Prihodek_od_prodaje1[[#This Row],[Prejšnje obdobje]])-1),IF(AND(Prihodek_od_prodaje1[[#This Row],[Trenutno obdobje]]<Prihodek_od_prodaje1[[#This Row],[Prejšnje obdobje]],Prihodek_od_prodaje1[[#This Row],[Prejšnje obdobje]]<0),-((Prihodek_od_prodaje1[[#This Row],[Trenutno obdobje]]/Prihodek_od_prodaje1[[#This Row],[Prejšnje obdobje]])-1),(Prihodek_od_prodaje1[[#This Row],[Trenutno obdobje]]/Prihodek_od_prodaje1[[#This Row],[Prejšnje obdobje]])-1))),\"-\")","v":{"v":0,"d":"0.00%"}},{"$f":"IFERROR(IF(Prihodek_od_prodaje1[[#This Row],[Proračun]]=Prihodek_od_prodaje1[[#This Row],[Trenutno obdobje]],0,IF(Prihodek_od_prodaje1[[#This Row],[Trenutno obdobje]]>Prihodek_od_prodaje1[[#This Row],[Proračun]],ABS((Prihodek_od_prodaje1[[#This Row],[Trenutno obdobje]]/Prihodek_od_prodaje1[[#This Row],[Proračun]])-1),IF(AND(Prihodek_od_prodaje1[[#This Row],[Trenutno obdobje]]<Prihodek_od_prodaje1[[#This Row],[Proračun]],Prihodek_od_prodaje1[[#This Row],[Proračun]]<0),-((Prihodek_od_prodaje1[[#This Row],[Trenutno obdobje]]/Prihodek_od_prodaje1[[#This Row],[Proračun]])-1),(Prihodek_od_prodaje1[[#This Row],[Trenutno obdobje]]/Prihodek_od_prodaje1[[#This Row],[Proračun]])-1))),\"-\")","v":{"v":0,"d":"0.00%"}}]
[null,"Stroški prodaje","Izdelek/storitev 4",{"$nulls":3},{"$f":"IFERROR(IF(Prihodek_od_prodaje1[[#Totals],[Trenutno obdobje]]=0,\"-\",Prihodek_od_prodaje1[[#This Row],[Trenutno obdobje]]/Prihodek_od_prodaje),\"-\")","v":"-"},{"$f":"IFERROR(IF(Prihodek_od_prodaje1[[#This Row],[Prejšnje obdobje]]=Prihodek_od_prodaje1[[#This Row],[Trenutno obdobje]],0,IF(Prihodek_od_prodaje1[[#This Row],[Trenutno obdobje]]>Prihodek_od_prodaje1[[#This Row],[Prejšnje obdobje]],ABS((Prihodek_od_prodaje1[[#This Row],[Trenutno obdobje]]/Prihodek_od_prodaje1[[#This Row],[Prejšnje obdobje]])-1),IF(AND(Prihodek_od_prodaje1[[#This Row],[Trenutno obdobje]]<Prihodek_od_prodaje1[[#This Row],[Prejšnje obdobje]],Prihodek_od_prodaje1[[#This Row],[Prejšnje obdobje]]<0),-((Prihodek_od_prodaje1[[#This Row],[Trenutno obdobje]]/Prihodek_od_prodaje1[[#This Row],[Prejšnje obdobje]])-1),(Prihodek_od_prodaje1[[#This Row],[Trenutno obdobje]]/Prihodek_od_prodaje1[[#This Row],[Prejšnje obdobje]])-1))),\"-\")","v":{"v":0,"d":"0.00%"}},{"$f":"IFERROR(IF(Prihodek_od_prodaje1[[#This Row],[Proračun]]=Prihodek_od_prodaje1[[#This Row],[Trenutno obdobje]],0,IF(Prihodek_od_prodaje1[[#This Row],[Trenutno obdobje]]>Prihodek_od_prodaje1[[#This Row],[Proračun]],ABS((Prihodek_od_prodaje1[[#This Row],[Trenutno obdobje]]/Prihodek_od_prodaje1[[#This Row],[Proračun]])-1),IF(AND(Prihodek_od_prodaje1[[#This Row],[Trenutno obdobje]]<Prihodek_od_prodaje1[[#This Row],[Proračun]],Prihodek_od_prodaje1[[#This Row],[Proračun]]<0),-((Prihodek_od_prodaje1[[#This Row],[Trenutno obdobje]]/Prihodek_od_prodaje1[[#This Row],[Proračun]])-1),(Prihodek_od_prodaje1[[#This Row],[Trenutno obdobje]]/Prihodek_od_prodaje1[[#This Row],[Proračun]])-1))),\"-\")","v":{"v":0,"d":"0.00%"}}]
[null,"Skupni prihodek od prodaje",null,{"$f":"SUBTOTAL(109,Prihodek_od_prodaje1[Prejšnje obdobje])","v":0},{"$f":"SUBTOTAL(109,Prihodek_od_prodaje1[Proračun])","v":0},{"$f":"SUBTOTAL(109,Prihodek_od_prodaje1[Trenutno obdobje])","v":0},{"$f":"SUBTOTAL(109,Prihodek_od_prodaje1[Trenutno obdobje kot % prodaje])","v":{"v":0,"d":"0.00%"}},{"$f":"SUBTOTAL(109,Prihodek_od_prodaje1[% spremembe od prejšnjega obdobja])","v":{"v":0,"d":"0.00%"}},{"$f":"SUBTOTAL(109,Prihodek_od_prodaje1[% spremembe od proračuna])","v":{"v":0,"d":"0.00%"}}]

{"sheet":"Dohodek","index":2,"n_rows":7,"n_cols":9,"rows_kept":7,"merged":[[0,7,2,8]]}
[null,{"$f":"Naslov_delovnega_zvezka","v":"Bilanca uspeha"}]
[null,{"$f":"Ime_podjetja","v":"Ime podjetja"},"Navedeno v 000"]
[null,"Dohodek",{"$f":"IFERROR(Dohodek[[#Totals],[Trenutno obdobje]],\"-\")","v":0}]
[null,"Vrsta dohodka","Opis","Prejšnje obdobje","Proračun","Trenutno obdobje","Trenutno obdobje kot % prodaje","% spremembe od prejšnjega obdobja","% spremembe od proračuna"]
[null,"Dohodek","Drugi dohodki",{"$nulls":3},{"$f":"IFERROR(IF(Prihodek_od_prodaje=0,\"-\",Dohodek[[#This Row],[Trenutno obdobje]]/Prihodek_od_prodaje),\"-\")","v":"-"},{"$f":"IFERROR(IF(Dohodek[[#This Row],[Prejšnje obdobje]]=Dohodek[[#This Row],[Trenutno obdobje]],0,IF(Dohodek[[#This Row],[Trenutno obdobje]]>Dohodek[[#This Row],[Prejšnje obdobje]],ABS((Dohodek[[#This Row],[Trenutno obdobje]]/Dohodek[[#This Row],[Prejšnje obdobje]])-1),IF(AND(Dohodek[[#This Row],[Trenutno obdobje]]<Dohodek[[#This Row],[Prejšnje obdobje]],Dohodek[[#This Row],[Prejšnje obdobje]]<0),-((Dohodek[[#This Row],[Trenutno obdobje]]/Dohodek[[#This Row],[Prejšnje obdobje]])-1),(Dohodek[[#This Row],[Trenutno obdobje]]/Dohodek[[#This Row],[Prejšnje obdobje]])-1))),\"-\")","v":{"v":0,"d":"0.00%"}},{"$f":"IFERROR(IF(Dohodek[[#This Row],[Proračun]]=Dohodek[[#This Row],[Trenutno obdobje]],0,IF(Dohodek[[#This Row],[Trenutno obdobje]]>Dohodek[[#This Row],[Proračun]],ABS((Dohodek[[#This Row],[Trenutno obdobje]]/Dohodek[[#This Row],[Proračun]])-1),IF(AND(Dohodek[[#This Row],[Trenutno obdobje]]<Dohodek[[#This Row],[Proračun]],Dohodek[[#This Row],[Proračun]]<0),-((Dohodek[[#This Row],[Trenutno obdobje]]/Dohodek[[#This Row],[Proračun]])-1),(Dohodek[[#This Row],[Trenutno obdobje]]/Dohodek[[#This Row],[Proračun]])-1))),\"-\")","v":{"v":0,"d":"0.00%"}}]
[{"$nulls":6},{"$f":"IFERROR(IF(Prihodek_od_prodaje=0,\"-\",Dohodek[[#This Row],[Trenutno obdobje]]/Prihodek_od_prodaje),\"-\")","v":"-"},{"$f":"IFERROR(IF(Dohodek[[#This Row],[Prejšnje obdobje]]=Dohodek[[#This Row],[Trenutno obdobje]],0,IF(Dohodek[[#This Row],[Trenutno obdobje]]>Dohodek[[#This Row],[Prejšnje obdobje]],ABS((Dohodek[[#This Row],[Trenutno obdobje]]/Dohodek[[#This Row],[Prejšnje obdobje]])-1),IF(AND(Dohodek[[#This Row],[Trenutno obdobje]]<Dohodek[[#This Row],[Prejšnje obdobje]],Dohodek[[#This Row],[Prejšnje obdobje]]<0),-((Dohodek[[#This Row],[Trenutno obdobje]]/Dohodek[[#This Row],[Prejšnje obdobje]])-1),(Dohodek[[#This Row],[Trenutno obdobje]]/Dohodek[[#This Row],[Prejšnje obdobje]])-1))),\"-\")","v":{"v":0,"d":"0.00%"}},{"$f":"IFERROR(IF(Dohodek[[#This Row],[Proračun]]=Dohodek[[#This Row],[Trenutno obdobje]],0,IF(Dohodek[[#This Row],[Trenutno obdobje]]>Dohodek[[#This Row],[Proračun]],ABS((Dohodek[[#This Row],[Trenutno obdobje]]/Dohodek[[#This Row],[Proračun]])-1),IF(AND(Dohodek[[#This Row],[Trenutno obdobje]]<Dohodek[[#This Row],[Proračun]],Dohodek[[#This Row],[Proračun]]<0),-((Dohodek[[#This Row],[Trenutno obdobje]]/Dohodek[[#This Row],[Proračun]])-1),(Dohodek[[#This Row],[Trenutno obdobje]]/Dohodek[[#This Row],[Proračun]])-1))),\"-\")","v":{"v":0,"d":"0.00%"}}]
[null,"Skupni dohodek od prodaje",null,{"$f":"SUBTOTAL(109,Dohodek[Prejšnje obdobje])","v":0},{"$f":"SUBTOTAL(109,Dohodek[Proračun])","v":0},{"$f":"SUBTOTAL(109,Dohodek[Trenutno obdobje])","v":0},{"$f":"SUBTOTAL(109,Dohodek[Trenutno obdobje kot % prodaje])","v":{"v":0,"d":"0.00%"}},{"$f":"SUBTOTAL(109,Dohodek[% spremembe od prejšnjega obdobja])","v":{"v":0,"d":"0.00%"}},{"$f":"SUBTOTAL(109,Dohodek[% spremembe od proračuna])","v":{"v":0,"d":"0.00%"}}]

{"sheet":"Stroški","index":3,"n_rows":25,"n_cols":9,"rows_kept":25,"merged":[[0,7,2,8]]}
[null,{"$f":"Naslov_delovnega_zvezka","v":"Bilanca uspeha"}]
[null,{"$f":"Ime_podjetja","v":"Ime podjetja"},"Navedeno v 000"]
[null,"Operativni stroški",{"$f":"IFERROR(OperatingExpenses[[#Totals],[Trenutno obdobje]],\"-\")","v":0}]
[null,"Vrsta stroška","Opis","Prejšnje obdobje","Proračun","Trenutno obdobje","Trenutno obdobje kot % prodaje","% spremembe od prejšnjega obdobja","% spremembe od proračuna"]
[null,"Prodaja in trženje","Oglaševanje",{"$nulls":3},{"$f":"IFERROR(IF(Prihodek_od_prodaje=0,\"-\",OperatingExpenses[[#This Row],[Trenutno obdobje]]/Prihodek_od_prodaje),\"-\")","v":"-"},{"$f":"IFERROR(IF(OperatingExpenses[[#This Row],[Prejšnje obdobje]]=OperatingExpenses[[#This Row],[Trenutno obdobje]],0,IF(OperatingExpenses[[#This Row],[Trenutno obdobje]]>OperatingExpenses[[#This Row],[Prejšnje obdobje]],ABS((OperatingExpenses[[#This Row],[Trenutno obdobje]]/OperatingExpenses[[#This Row],[Prejšnje obdobje]])-1),IF(AND(OperatingExpenses[[#This Row],[Trenutno obdobje]]<OperatingExpenses[[#This Row],[Prejšnje obdobje]],OperatingExpenses[[#This Row],[Prejšnje obdobje]]<0),-((OperatingExpenses[[#This Row],[Trenutno obdobje]]/OperatingExpenses[[#This Row],[Prejšnje obdobje]])-1),(OperatingExpenses[[#This Row],[Trenutno obdobje]]/OperatingExpenses[[#This Row],[Prejšnje obdobje]])-1))),\"-\")","v":{"v":0,"d":"0.00%"}},{"$f":"IFERROR(IF(OperatingExpenses[[#This Row],[Proračun]]=OperatingExpenses[[#This Row],[Trenutno obdobje]],0,IF(OperatingExpenses[[#This Row],[Trenutno obdobje]]>OperatingExpenses[[#This Row],[Proračun]],ABS((OperatingExpenses[[#This Row],[Trenutno obdobje]]/OperatingExpenses[[#This Row],[Proračun]])-1),IF(AND(OperatingExpenses[[#This Row],[Trenutno obdobje]]<OperatingExpenses[[#This Row],[Proračun]],OperatingExpenses[[#This Row],[Proračun]]<0),-((OperatingExpenses[[#This Row],[Trenutno obdobje]]/OperatingExpenses[[#This Row],[Proračun]])-1),(OperatingExpenses[[#This Row],[Trenutno obdobje]]/OperatingExpenses[[#This Row],[Proračun]])-1))),\"-\")","v":{"v":0,"d":"0.00%"}}]
[null,"Prodaja in trženje","Neposredno trženje",{"$nulls":3},{"$f":"IFERROR(IF(Prihodek_od_prodaje=0,\"-\",OperatingExpenses[[#This Row],[Trenutno obdobje]]/Prihodek_od_prodaje),\"-\")","v":"-"},{"$f":"IFERROR(IF(OperatingExpenses[[#This Row],[Prejšnje obdobje]]=OperatingExpenses[[#This Row],[Trenutno obdobje]],0,IF(OperatingExpenses[[#This Row],[Trenutno obdobje]]>OperatingExpenses[[#This Row],[Prejšnje obdobje]],ABS((OperatingExpenses[[#This Row],[Trenutno obdobje]]/OperatingExpenses[[#This Row],[Prejšnje obdobje]])-1),IF(AND(OperatingExpenses[[#This Row],[Trenutno obdobje]]<OperatingExpenses[[#This Row],[Prejšnje obdobje]],OperatingExpenses[[#This Row],[Prejšnje obdobje]]<0),-((OperatingExpenses[[#This Row],[Trenutno obdobje]]/OperatingExpenses[[#This Row],[Prejšnje obdobje]])-1),(OperatingExpenses[[#This Row],[Trenutno obdobje]]/OperatingExpenses[[#This Row],[Prejšnje obdobje]])-1))),\"-\")","v":{"v":0,"d":"0.00%"}},{"$f":"IFERROR(IF(OperatingExpenses[[#This Row],[Proračun]]=OperatingExpenses[[#This Row],[Trenutno obdobje]],0,IF(OperatingExpenses[[#This Row],[Trenutno obdobje]]>OperatingExpenses[[#This Row],[Proračun]],ABS((OperatingExpenses[[#This Row],[Trenutno obdobje]]/OperatingExpenses[[#This Row],[Proračun]])-1),IF(AND(OperatingExpenses[[#This Row],[Trenutno obdobje]]<OperatingExpenses[[#This Row],[Proračun]],OperatingExpenses[[#This Row],[Proračun]]<0),-((OperatingExpenses[[#This Row],[Trenutno obdobje]]/OperatingExpenses[[#This Row],[Proračun]])-1),(OperatingExpenses[[#This Row],[Trenutno obdobje]]/OperatingExpenses[[#This Row],[Proračun]])-1))),\"-\")","v":{"v":0,"d":"0.00%"}}]
[null,"Prodaja in trženje","Drugi stroški (navedite)",{"$nulls":3},{"$f":"IFERROR(IF(Prihodek_od_prodaje=0,\"-\",OperatingExpenses[[#This Row],[Trenutno obdobje]]/Prihodek_od_prodaje),\"-\")","v":"-"},{"$f":"IFERROR(IF(OperatingExpenses[[#This Row],[Prejšnje obdobje]]=OperatingExpenses[[#This Row],[Trenutno obdobje]],0,IF(OperatingExpenses[[#This Row],[Trenutno obdobje]]>OperatingExpenses[[#This Row],[Prejšnje obdobje]],ABS((OperatingExpenses[[#This Row],[Trenutno obdobje]]/OperatingExpenses[[#This Row],[Prejšnje obdobje]])-1),IF(AND(OperatingExpenses[[#This Row],[Trenutno obdobje]]<OperatingExpenses[[#This Row],[Prejšnje obdobje]],OperatingExpenses[[#This Row],[Prejšnje obdobje]]<0),-((OperatingExpenses[[#This Row],[Trenutno obdobje]]/OperatingExpenses[[#This Row],[Prejšnje obdobje]])-1),(OperatingExpenses[[#This Row],[Trenutno obdobje]]/OperatingExpenses[[#This Row],[Prejšnje obdobje]])-1))),\"-\")","v":{"v":0,"d":"0.00%"}},{"$f":"IFERROR(IF(OperatingExpenses[[#This Row],[Proračun]]=OperatingExpenses[[#This Row],[Trenutno obdobje]],0,IF(OperatingExpenses[[#This Row],[Trenutno obdobje]]>OperatingExpenses[[#This Row],[Proračun]],ABS((OperatingExpenses[[#This Row],[Trenutno obdobje]]/OperatingExpenses[[#This Row],[Proračun]])-1),IF(AND(OperatingExpenses[[#This Row],[Trenutno obdobje]]<OperatingExpenses[[#This Row],[Proračun]],OperatingExpenses[[#This Row],[Proračun]]<0),-((OperatingExpenses[[#This Row],[Trenutno obdobje]]/OperatingExpenses[[#This Row],[Proračun]])-1),(OperatingExpenses[[#This Row],[Trenutno obdobje]]/OperatingExpenses[[#This Row],[Proračun]])-1))),\"-\")","v":{"v":0,"d":"0.00%"}}]
[null,"Prodaja in trženje","Drugi stroški (navedite)",{"$nulls":3},{"$f":"IFERROR(IF(Prihodek_od_prodaje=0,\"-\",OperatingExpenses[[#This Row],[Trenutno obdobje]]/Prihodek_od_prodaje),\"-\")","v":"-"},{"$f":"IFERROR(IF(OperatingExpenses[[#This Row],[Prejšnje obdobje]]=OperatingExpenses[[#This Row],[Trenutno obdobje]],0,IF(OperatingExpenses[[#This Row],[Trenutno obdobje]]>OperatingExpenses[[#This Row],[Prejšnje obdobje]],ABS((OperatingExpenses[[#This Row],[Trenutno obdobje]]/OperatingExpenses[[#This Row],[Prejšnje obdobje]])-1),IF(AND(OperatingExpenses[[#This Row],[Trenutno obdobje]]<OperatingExpenses[[#This Row],[Prejšnje obdobje]],OperatingExpenses[[#This Row],[Prejšnje obdobje]]<0),-((OperatingExpenses[[#This Row],[Trenutno obdobje]]/OperatingExpenses[[#This Row],[Prejšnje obdobje]])-1),(OperatingExpenses[[#This Row],[Trenutno obdobje]]/OperatingExpenses[[#This Row],[Prejšnje obdobje]])-1))),\"-\")","v":{"v":0,"d":"0.00%"}},{"$f":"IFERROR(IF(OperatingExpenses[[#This Row],[Proračun]]=OperatingExpenses[[#This Row],[Trenutno obdobje]],0,IF(OperatingExpenses[[#This Row],[Trenutno obdobje]]>OperatingExpenses[[#This Row],[Proračun]],ABS((OperatingExpenses[[#This Row],[Trenutno obdobje]]/OperatingExpenses[[#This Row],[Proračun]])-1),IF(AND(OperatingExpenses[[#This Row],[Trenutno obdobje]]<OperatingExpenses[[#This Row],[Proračun]],OperatingExpenses[[#This Row],[Proračun]]<0),-((OperatingExpenses[[#This Row],[Trenutno obdobje]]/OperatingExpenses[[#This Row],[Proračun]])-1),(OperatingExpenses[[#This Row],[Trenutno obdobje]]/OperatingExpenses[[#This Row],[Proračun]])-1))),\"-\")","v":{"v":0,"d":"0.00%"}}]
[null,"Raziskave in razvoj","Tehnološke licence",{"$nulls":3},{"$f":"IFERROR(IF(Prihodek_od_prodaje=0,\"-\",OperatingExpenses[[#This Row],[Trenutno obdobje]]/Prihodek_od_prodaje),\"-\")","v":"-"},{"$f":"IFERROR(IF(OperatingExpenses[[#This Row],[Prejšnje obdobje]]=OperatingExpenses[[#This Row],[Trenutno obdobje]],0,IF(OperatingExpenses[[#This Row],[Trenutno obdobje]]>OperatingExpenses[[#This Row],[Prejšnje obdobje]],ABS((OperatingExpenses[[#This Row],[Trenutno obdobje]]/OperatingExpenses[[#This Row],[Prejšnje obdobje]])-1),IF(AND(OperatingExpenses[[#This Row],[Trenutno obdobje]]<OperatingExpenses[[#This Row],[Prejšnje obdobje]],OperatingExpenses[[#This Row],[Prejšnje obdobje]]<0),-((OperatingExpenses[[#This Row],[Trenutno obdobje]]/OperatingExpenses[[#This Row],[Prejšnje obdobje]])-1),(OperatingExpenses[[#This Row],[Trenutno obdobje]]/OperatingExpenses[[#This Row],[Prejšnje obdobje]])-1))),\"-\")","v":{"v":0,"d":"0.00%"}},{"$f":"IFERROR(IF(OperatingExpenses[[#This Row],[Proračun]]=OperatingExpenses[[#This Row],[Trenutno obdobje]],0,IF(OperatingExpenses[[#This Row],[Trenutno obdobje]]>OperatingExpenses[[#This Row],[Proračun]],ABS((OperatingExpenses[[#This Row],[Trenutno obdobje]]/OperatingExpenses[[#This Row],[Proračun]])-1),IF(AND(OperatingExpenses[[#This Row],[Trenutno obdobje]]<OperatingExpenses[[#This Row],[Proračun]],OperatingExpenses[[#This Row],[Proračun]]<0),-((OperatingExpenses[[#This Row],[Trenutno obdobje]]/OperatingExpenses[[#This Row],[Proračun]])-1),(OperatingExpenses[[#This Row],[Trenutno obdobje]]/OperatingExpenses[[#This Row],[Proračun]])-1))),\"-\")","v":{"v":0,"d":"0.00%"}}]
[null,"Raziskave in razvoj","Patenti ",{"$nulls":3},{"$f":"IFERROR(IF(Prihodek_od_prodaje=0,\"-\",OperatingExpenses[[#This Row],[Trenutno obdobje]]/Prihodek_od_prodaje),\"-\")","v":"-"},{"$f":"IFERROR(IF(OperatingExpenses[[#This Row],[Prejšnje obdobje]]=OperatingExpenses[[#This Row],[Trenutno obdobje]],0,IF(OperatingExpenses[[#This Row],[Trenutno obdobje]]>OperatingExpenses[[#This Row],[Prejšnje obdobje]],ABS((OperatingExpenses[[#This Row],[Trenutno obdobje]]/OperatingExpenses[[#This Row],[Prejšnje obdobje]])-1),IF(AND(OperatingExpenses[[#This Row],[Trenutno obdobje]]<OperatingExpenses[[#This Row],[Prejšnje obdobje]],OperatingExpenses[[#This Row],[Prejšnje obdobje]]<0),-((OperatingExpenses[[#This Row],[Trenutno obdobje]]/OperatingExpenses[[#This Row],[Prejšnje obdobje]])-1),(OperatingExpenses[[#This Row],[Trenutno obdobje]]/OperatingExpenses[[#This Row],[Prejšnje obdobje]])-1))),\"-\")","v":{"v":0,"d":"0.00%"}},{"$f":"IFERROR(IF(OperatingExpenses[[#This Row],[Proračun]]=OperatingExpenses[[#This Row],[Trenutno obdobje]],0,IF(OperatingExpenses[[#This Row],[Trenutno obdobje]]>OperatingExpenses[[#This Row],[Proračun]],ABS((OperatingExpenses[[#This Row],[Trenutno obdobje]]/OperatingExpenses[[#This Row],[Proračun]])-1),IF(AND(OperatingExpenses[[#This Row],[Trenutno obdobje]]<OperatingExpenses[[#This Row],[Proračun]],OperatingExpenses[[#This Row],[Proračun]]<0),-((OperatingExpenses[[#This Row],[Trenutno obdobje]]/OperatingExpenses[[#This Row],[Proračun]])-1),(OperatingExpenses[[#This Row],[Trenutno obdobje]]/OperatingExpenses[[#This Row],[Proračun]])-1))),\"-\")","v":{"v":0,"d":"0.00%"}}]
[null,"Raziskave in razvoj","Drugi stroški (navedite)",{"$nulls":3},{"$f":"IFERROR(IF(Prihodek_od_prodaje=0,\"-\",OperatingExpenses[[#This Row],[Trenutno obdobje]]/Prihodek_od_prodaje),\"-\")","v":"-"},{"$f":"IFERROR(IF(OperatingExpenses[[#This Row],[Prejšnje obdobje]]=OperatingExpenses[[#This Row],[Trenutno obdobje]],0,IF(OperatingExpenses[[#This Row],[Trenutno obdobje]]>OperatingExpenses[[#This Row],[Prejšnje obdobje]],ABS((OperatingExpenses[[#This Row],[Trenutno obdobje]]/OperatingExpenses[[#This Row],[Prejšnje obdobje]])-1),IF(AND(OperatingExpenses[[#This Row],[Trenutno obdobje]]<OperatingExpenses[[#This Row],[Prejšnje obdobje]],OperatingExpenses[[#This Row],[Prejšnje obdobje]]<0),-((OperatingExpenses[[#This Row],[Trenutno obdobje]]/OperatingExpenses[[#This Row],[Prejšnje obdobje]])-1),(OperatingExpenses[[#This Row],[Trenutno obdobje]]/OperatingExpenses[[#This Row],[Prejšnje obdobje]])-1))),\"-\")","v":{"v":0,"d":"0.00%"}},{"$f":"IFERROR(IF(OperatingExpenses[[#This Row],[Proračun]]=OperatingExpenses[[#This Row],[Trenutno obdobje]],0,IF(OperatingExpenses[[#This Row],[Trenutno obdobje]]>OperatingExpenses[[#This Row],[Proračun]],ABS((OperatingExpenses[[#This Row],[Trenutno obdobje]]/OperatingExpenses[[#This Row],[Proračun]])-1),IF(AND(OperatingExpenses[[#This Row],[Trenutno obdobje]]<OperatingExpenses[[#This Row],[Proračun]],OperatingExpenses[[#This Row],[Proračun]]<0),-((OperatingExpenses[[#This Row],[Trenutno obdobje]]/OperatingExpenses[[#This Row],[Proračun]])-1),(OperatingExpenses[[#This Row],[Trenutno obdobje]]/OperatingExpenses[[#This Row],[Proračun]])-1))),\"-\")","v":{"v":0,"d":"0.00%"}}]
[null,"Raziskave in razvoj","Drugi stroški (navedite)",{"$nulls":3},{"$f":"IFERROR(IF(Prihodek_od_prodaje=0,\"-\",OperatingExpenses[[#This Row],[Trenutno obdobje]]/Prihodek_od_prodaje),\"-\")","v":"-"},{"$f":"IFERROR(IF(OperatingExpenses[[#This Row],[Prejšnje obdobje]]=OperatingExpenses[[#This Row],[Trenutno obdobje]],0,IF(OperatingExpenses[[#This Row],[Trenutno obdobje]]>OperatingExpenses[[#This Row],[Prejšnje obdobje]],ABS((OperatingExpenses[[#This Row],[Trenutno obdobje]]/OperatingExpenses[[#This Row],[Prejšnje obdobje]])-1),IF(AND(OperatingExpenses[[#This Row],[Trenutno obdobje]]<OperatingExpenses[[#This Row],[Prejšnje obdobje]],OperatingExpenses[[#This Row],[Prejšnje obdobje]]<0),-((OperatingExpenses[[#This Row],[Trenutno obdobje]]/OperatingExpenses[[#This Row],[Prejšnje obdobje]])-1),(OperatingExpenses[[#This Row],[Trenutno obdobje]]/OperatingExpenses[[#This Row],[Prejšnje obdobje]])-1))),\"-\")","v":{"v":0,"d":"0.00%"}},{"$f":"IFERROR(IF(OperatingExpenses[[#This Row],[Proračun]]=OperatingExpenses[[#This Row],[Trenutno obdobje]],0,IF(OperatingExpenses[[#This Row],[Trenutno obdobje]]>OperatingExpenses[[#This Row],[Proračun]],ABS((OperatingExpenses[[#This Row],[Trenutno obdobje]]/OperatingExpenses[[#This Row],[Proračun]])-1),IF(AND(OperatingExpenses[[#This Row],[Trenutno obdobje]]<OperatingExpenses[[#This Row],[Proračun]],OperatingExpenses[[#This Row],[Proračun]]<0),-((OperatingExpenses[[#This Row],[Trenutno obdobje]]/OperatingExpenses[[#This Row],[Proračun]])-1),(OperatingExpenses[[#This Row],[Trenutno obdobje]]/OperatingExpenses[[#This Row],[Proračun]])-1))),\"-\")","v":{"v":0,"d":"0.00%"}}]
[null,"Splošno in administracija","Plače",{"$nulls":3},{"$f":"IFERROR(IF(Prihodek_od_prodaje=0,\"-\",OperatingExpenses[[#This Row],[Trenutno obdobje]]/Prihodek_od_prodaje),\"-\")","v":"-"},{"$f":"IFERROR(IF(OperatingExpenses[[#This Row],[Prejšnje obdobje]]=OperatingExpenses[[#This Row],[Trenutno obdobje]],0,IF(OperatingExpenses[[#This Row],[Trenutno obdobje]]>OperatingExpenses[[#This Row],[Prejšnje obdobje]],ABS((OperatingExpenses[[#This Row],[Trenutno obdobje]]/OperatingExpenses[[#This Row],[Prejšnje obdobje]])-1),IF(AND(OperatingExpenses[[#This Row],[Trenutno obdobje]]<OperatingExpenses[[#This Row],[Prejšnje obdobje]],OperatingExpenses[[#This Row],[Prejšnje obdobje]]<0),-((OperatingExpenses[[#This Row],[Trenutno obdobje]]/OperatingExpenses[[#This Row],[Prejšnje obdobje]])-1),(OperatingExpenses[[#This Row],[Trenutno obdobje]]/OperatingExpenses[[#This Row],[Prejšnje obdobje]])-1))),\"-\")","v":{"v":0,"d":"0.00%"}},{"$f":"IFERROR(IF(OperatingExpenses[[#This Row],[Proračun]]=OperatingExpenses[[#This Row],[Trenutno obdobje]],0,IF(OperatingExpenses[[#This Row],[Trenutno obdobje]]>OperatingExpenses[[#This Row],[Proračun]],ABS((OperatingExpenses[[#This Row],[Trenutno obdobje]]/OperatingExpenses[[#This Row],[Proračun]])-1),IF(AND(OperatingExpenses[[#This Row],[Trenutno obdobje]]<OperatingExpenses[[#This Row],[Proračun]],OperatingExpenses[[#This Row],[Proračun]]<0),-((OperatingExpenses[[#This Row],[Trenutno obdobje]]/OperatingExpenses[[#This Row],[Proračun]])-1),(OperatingExpenses[[#This Row],[Trenutno obdobje]]/OperatingExpenses[[#This Row],[Proračun]])-1))),\"-\")","v":{"v":0,"d":"0.00%"}}]
[null,"Splošno in administracija","Zunanje storitve",{"$nulls":3},{"$f":"IFERROR(IF(Prihodek_od_prodaje=0,\"-\",OperatingExpenses[[#This Row],[Trenutno obdobje]]/Prihodek_od_prodaje),\"-\")","v":"-"},{"$f":"IFERROR(IF(OperatingExpenses[[#This Row],[Prejšnje obdobje]]=OperatingExpenses[[#This Row],[Trenutno obdobje]],0,IF(OperatingExpenses[[#This Row],[Trenutno obdobje]]>OperatingExpenses[[#This Row],[Prejšnje obdobje]],ABS((OperatingExpenses[[#This Row],[Trenutno obdobje]]/OperatingExpenses[[#This Row],[Prejšnje obdobje]])-1),IF(AND(OperatingExpenses[[#This Row],[Trenutno obdobje]]<OperatingExpenses[[#This Row],[Prejšnje obdobje]],OperatingExpenses[[#This Row],[Prejšnje obdobje]]<0),-((OperatingExpenses[[#This Row],[Trenutno obdobje]]/OperatingExpenses[[#This Row],[Prejšnje obdobje]])-1),(OperatingExpenses[[#This Row],[Trenutno obdobje]]/OperatingExpenses[[#This Row],[Prejšnje obdobje]])-1))),\"-\")","v":{"v":0,"d":"0.00%"}},{"$f":"IFERROR(IF(OperatingExpenses[[#This Row],[Proračun]]=OperatingExpenses[[#This Row],[Trenutno obdobje]],0,IF(OperatingExpenses[[#This Row],[Trenutno obdobje]]>OperatingExpenses[[#This Row],[Proračun]],ABS((OperatingExpenses[[#This Row],[Trenutno obdobje]]/OperatingExpenses[[#This Row],[Proračun]])-1),IF(AND(OperatingExpenses[[#This Row],[Trenutno obdobje]]<OperatingExpenses[[#This Row],[Proračun]],OperatingExpenses[[#This Row],[Proračun]]<0),-((OperatingExpenses[[#This Row],[Trenutno obdobje]]/OperatingExpenses[[#This Row],[Proračun]])-1),(OperatingExpenses[[#This Row],[Trenutno obdobje]]/OperatingExpenses[[#This Row],[Proračun]])-1))),\"-\")","v":{"v":0,"d":"0.00%"}}]
[null,"Splošno in administracija","Pripomočki",{"$nulls":3},{"$f":"IFERROR(IF(Prihodek_od_prodaje=0,\"-\",OperatingExpenses[[#This Row],[Trenutno obdobje]]/Prihodek_od_prodaje),\"-\")","v":"-"},{"$f":"IFERROR(IF(OperatingExpenses[[#This Row],[Prejšnje obdobje]]=OperatingExpenses[[#This Row],[Trenutno obdobje]],0,IF(OperatingExpenses[[#This Row],[Trenutno obdobje]]>OperatingExpenses[[#This Row],[Prejšnje obdobje]],ABS((OperatingExpenses[[#This Row],[Trenutno obdobje]]/OperatingExpenses[[#This Row],[Prejšnje obdobje]])-1),IF(AND(OperatingExpenses[[#This Row],[Trenutno obdobje]]<OperatingExpenses[[#This Row],[Prejšnje obdobje]],OperatingExpenses[[#This Row],[Prejšnje obdobje]]<0),-((OperatingExpenses[[#This Row],[Trenutno obdobje]]/OperatingExpenses[[#This Row],[Prejšnje obdobje]])-1),(OperatingExpenses[[#This Row],[Trenutno obdobje]]/OperatingExpenses[[#This Row],[Prejšnje obdobje]])-1))),\"-\")","v":{"v":0,"d":"0.00%"}},{"$f":"IFERROR(IF(OperatingExpenses[[#This Row],[Proračun]]=OperatingExpenses[[#This Row],[Trenutno obdobje]],0,IF(OperatingExpenses[[#This Row],[Trenutno obdobje]]>OperatingExpenses[[#This Row],[Proračun]],ABS((OperatingExpenses[[#This Row],[Trenutno obdobje]]/OperatingExpenses[[#This Row],[Proračun]])-1),IF(AND(OperatingExpenses[[#This Row],[Trenutno obdobje]]<OperatingExpenses[[#This Row],[Proračun]],OperatingExpenses[[#This Row],[Proračun]]<0),-((OperatingExpenses[[#This Row],[Trenutno obdobje]]/OperatingExpenses[[#This Row],[Proračun]])-1),(OperatingExpenses[[#This Row],[Trenutno obdobje]]/OperatingExpenses[[#This Row],[Proračun]])-1))),\"-\")","v":{"v":0,"d":"0.00%"}}]
[null,"Splošno in administracija","Hrana in zabava",{"$nulls":3},{"$f":"IFERROR(IF(Prihodek_od_prodaje=0,\"-\",OperatingExpenses[[#This Row],[Trenutno obdobje]]/Prihodek_od_prodaje),\"-\")","v":"-"},{"$f":"IFERROR(IF(OperatingExpenses[[#This Row],[Prejšnje obdobje]]=OperatingExpenses[[#This Row],[Trenutno obdobje]],0,IF(OperatingExpenses[[#This Row],[Trenutno obdobje]]>OperatingExpenses[[#This Row],[Prejšnje obdobje]],ABS((OperatingExpenses[[#This Row],[Trenutno obdobje]]/OperatingExpenses[[#This Row],[Prejšnje obdobje]])-1),IF(AND(OperatingExpenses[[#This Row],[Trenutno obdobje]]<OperatingExpenses[[#This Row],[Prejšnje obdobje]],OperatingExpenses[[#This Row],[Prejšnje obdobje]]<0),-((OperatingExpenses[[#This Row],[Trenutno obdobje]]/OperatingExpenses[[#This Row],[Prejšnje obdobje]])-1),(OperatingExpenses[[#This Row],[Trenutno obdobje]]/OperatingExpenses[[#This Row],[Prejšnje obdobje]])-1))),\"-\")","v":{"v":0,"d":"0.00%"}},{"$f":"IFERROR(IF(OperatingExpenses[[#This Row],[Proračun]]=OperatingExpenses[[#This Row],[Trenutno obdobje]],0,IF(OperatingExpenses[[#This Row],[Trenutno obdobje]]>OperatingExpenses[[#This Row],[Proračun]],ABS((OperatingExpenses[[#This Row],[Trenutno obdobje]]/OperatingExpenses[[#This Row],[Proračun]])-1),IF(AND(OperatingExpenses[[#This Row],[Trenutno obdobje]]<OperatingExpenses[[#This Row],[Proračun]],OperatingExpenses[[#This Row],[Proračun]]<0),-((OperatingExpenses[[#This Row],[Trenutno obdobje]]/OperatingExpenses[[#This Row],[Proračun]])-1),(OperatingExpenses[[#This Row],[Trenutno obdobje]]/OperatingExpenses[[#This Row],[Proračun]])-1))),\"-\")","v":{"v":0,"d":"0.00%"}}]
[null,"Splošno in administracija","Najemnina",{"$nulls":3},{"$f":"IFERROR(IF(Prihodek_od_prodaje=0,\"-\",OperatingExpenses[[#This Row],[Trenutno obdobje]]/Prihodek_od_prodaje),\"-\")","v":"-"},{"$f":"IFERROR(IF(OperatingExpenses[[#This Row],[Prejšnje obdobje]]=OperatingExpenses[[#This Row],[Trenutno obdobje]],0,IF(OperatingExpenses[[#This Row],[Trenutno obdobje]]>OperatingExpenses[[#This Row],[Prejšnje obdobje]],ABS((OperatingExpenses[[#This Row],[Trenutno obdobje]]/OperatingExpenses[[#This Row],[Prejšnje obdobje]])-1),IF(AND(OperatingExpenses[[#This Row],[Trenutno obdobje]]<OperatingExpenses[[#This Row],[Prejšnje obdobje]],OperatingExpenses[[#This Row],[Prejšnje obdobje]]<0),-((OperatingExpenses[[#This Row],[Trenutno obdobje]]/OperatingExpenses[[#This Row],[Prejšnje obdobje]])-1),(OperatingExpenses[[#This Row],[Trenutno obdobje]]/OperatingExpenses[[#This Row],[Prejšnje obdobje]])-1))),\"-\")","v":{"v":0,"d":"0.00%"}},{"$f":"IFERROR(IF(OperatingExpenses[[#This Row],[Proračun]]=OperatingExpenses[[#This Row],[Trenutno obdobje]],0,IF(OperatingExpenses[[#This Row],[Trenutno obdobje]]>OperatingExpenses[[#This Row],[Proračun]],ABS((OperatingExpenses[[#This Row],[Trenutno obdobje]]/OperatingExpenses[[#This Row],[Proračun]])-1),IF(AND(OperatingExpenses[[#This Row],[Trenutno obdobje]]<OperatingExpenses[[#This Row],[Proračun]],OperatingExpenses[[#This Row],[Proračun]]<0),-((OperatingExpenses[[#This Row],[Trenutno obdobje]]/OperatingExpenses[[#This Row],[Proračun]])-1),(OperatingExpenses[[#This Row],[Trenutno obdobje]]/OperatingExpenses[[#This Row],[Proračun]])-1))),\"-\")","v":{"v":0,"d":"0.00%"}}]
[null,"Splošno in administracija","Telefon",{"$nulls":3},{"$f":"IFERROR(IF(Prihodek_od_prodaje=0,\"-\",OperatingExpenses[[#This Row],[Trenutno obdobje]]/Prihodek_od_prodaje),\"-\")","v":"-"},{"$f":"IFERROR(IF(OperatingExpenses[[#This Row],[Prejšnje obdobje]]=OperatingExpenses[[#This Row],[Trenutno obdobje]],0,IF(OperatingExpenses[[#This Row],[Trenutno obdobje]]>OperatingExpenses[[#This Row],[Prejšnje obdobje]],ABS((OperatingExpenses[[#This Row],[Trenutno obdobje]]/OperatingExpenses[[#This Row],[Prejšnje obdobje]])-1),IF(AND(OperatingExpenses[[#This Row],[Trenutno obdobje]]<OperatingExpenses[[#This Row],[Prejšnje obdobje]],OperatingExpenses[[#This Row],[Prejšnje obdobje]]<0),-((OperatingExpenses[[#This Row],[Trenutno obdobje]]/OperatingExpenses[[#This Row],[Prejšnje obdobje]])-1),(OperatingExpenses[[#This Row],[Trenutno obdobje]]/OperatingExpenses[[#This Row],[Prejšnje obdobje]])-1))),\"-\")","v":{"v":0,"d":"0.00%"}},{"$f":"IFERROR(IF(OperatingExpenses[[#This Row],[Proračun]]=OperatingExpenses[[#This Row],[Trenutno obdobje]],0,IF(OperatingExpenses[[#This Row],[Trenutno obdobje]]>OperatingExpenses[[#This Row],[Proračun]],ABS((OperatingExpenses[[#This Row],[Trenutno obdobje]]/OperatingExpenses[[#This Row],[Proračun]])-1),IF(AND(OperatingExpenses[[#This Row],[Trenutno obdobje]]<OperatingExpenses[[#This Row],[Proračun]],OperatingExpenses[[#This Row],[Proračun]]<0),-((OperatingExpenses[[#This Row],[Trenutno obdobje]]/OperatingExpenses[[#This Row],[Proračun]])-1),(OperatingExpenses[[#This Row],[Trenutno obdobje]]/OperatingExpenses[[#This Row],[Proračun]])-1))),\"-\")","v":{"v":0,"d":"0.00%"}}]
[null,"Splošno in administracija","Komunalni stroški",{"$nulls":3},{"$f":"IFERROR(IF(Prihodek_od_prodaje=0,\"-\",OperatingExpenses[[#This Row],[Trenutno obdobje]]/Prihodek_od_prodaje),\"-\")","v":"-"},{"$f":"IFERROR(IF(OperatingExpenses[[#This Row],[Prejšnje obdobje]]=OperatingExpenses[[#This Row],[Trenutno obdobje]],0,IF(OperatingExpenses[[#This Row],[Trenutno obdobje]]>OperatingExpenses[[#This Row],[Prejšnje obdobje]],ABS((OperatingExpenses[[#This Row],[Trenutno obdobje]]/OperatingExpenses[[#This Row],[Prejšnje obdobje]])-1),IF(AND(OperatingExpenses[[#This Row],[Trenutno obdobje]]<OperatingExpenses[[#This Row],[Prejšnje obdobje]],OperatingExpenses[[#This Row],[Prejšnje obdobje]]<0),-((OperatingExpenses[[#This Row],[Trenutno obdobje]]/OperatingExpenses[[#This Row],[Prejšnje obdobje]])-1),(OperatingExpenses[[#This Row],[Trenutno obdobje]]/OperatingExpenses[[#This Row],[Prejšnje obdobje]])-1))),\"-\")","v":{"v":0,"d":"0.00%"}},{"$f":"IFERROR(IF(OperatingExpenses[[#This Row],[Proračun]]=OperatingExpenses[[#This Row],[Trenutno obdobje]],0,IF(OperatingExpenses[[#This Row],[Trenutno obdobje]]>OperatingExpenses[[#This Row],[Proračun]],ABS((OperatingExpenses[[#This Row],[Trenutno obdobje]]/OperatingExpenses[[#This Row],[Proračun]])-1),IF(AND(OperatingExpenses[[#This Row],[Trenutno obdobje]]<OperatingExpenses[[#This Row],[Proračun]],OperatingExpenses[[#This Row],[Proračun]]<0),-((OperatingExpenses[[#This Row],[Trenutno obdobje]]/OperatingExpenses[[#This Row],[Proračun]])-1),(OperatingExpenses[[#This Row],[Trenutno obdobje]]/OperatingExpenses[[#This Row],[Proračun]])-1))),\"-\")","v":{"v":0,"d":"0.00%"}}]
[null,"Splošno in administracija","Amortizacija",{"$nulls":3},{"$f":"IFERROR(IF(Prihodek_od_prodaje=0,\"-\",OperatingExpenses[[#This Row],[Trenutno obdobje]]/Prihodek_od_prodaje),\"-\")","v":"-"},{"$f":"IFERROR(IF(OperatingExpenses[[#This Row],[Prejšnje obdobje]]=OperatingExpenses[[#This Row],[Trenutno obdobje]],0,IF(OperatingExpenses[[#This Row],[Trenutno obdobje]]>OperatingExpenses[[#This Row],[Prejšnje obdobje]],ABS((OperatingExpenses[[#This Row],[Trenutno obdobje]]/OperatingExpenses[[#This Row],[Prejšnje obdobje]])-1),IF(AND(OperatingExpenses[[#This Row],[Trenutno obdobje]]<OperatingExpenses[[#This Row],[Prejšnje obdobje]],OperatingExpenses[[#This Row],[Prejšnje obdobje]]<0),-((OperatingExpenses[[#This Row],[Trenutno obdobje]]/OperatingExpenses[[#This Row],[Prejšnje obdobje]])-1),(OperatingExpenses[[#This Row],[Trenutno obdobje]]/OperatingExpenses[[#This Row],[Prejšnje obdobje]])-1))),\"-\")","v":{"v":0,"d":"0.00%"}},{"$f":"IFERROR(IF(OperatingExpenses[[#This Row],[Proračun]]=OperatingExpenses[[#This Row],[Trenutno obdobje]],0,IF(OperatingExpenses[[#This Row],[Trenutno obdobje]]>OperatingExpenses[[#This Row],[Proračun]],ABS((OperatingExpenses[[#This Row],[Trenutno obdobje]]/OperatingExpenses[[#This Row],[Proračun]])-1),IF(AND(OperatingExpenses[[#This Row],[Trenutno obdobje]]<OperatingExpenses[[#This Row],[Proračun]],OperatingExpenses[[#This Row],[Proračun]]<0),-((OperatingExpenses[[#This Row],[Trenutno obdobje]]/OperatingExpenses[[#This Row],[Proračun]])-1),(OperatingExpenses[[#This Row],[Trenutno obdobje]]/OperatingExpenses[[#This Row],[Proračun]])-1))),\"-\")","v":{"v":0,"d":"0.00%"}}]
[null,"Splošno in administracija","Zavarovanje",{"$nulls":3},{"$f":"IFERROR(IF(Prihodek_od_prodaje=0,\"-\",OperatingExpenses[[#This Row],[Trenutno obdobje]]/Prihodek_od_prodaje),\"-\")","v":"-"},{"$f":"IFERROR(IF(OperatingExpenses[[#This Row],[Prejšnje obdobje]]=OperatingExpenses[[#This Row],[Trenutno obdobje]],0,IF(OperatingExpenses[[#This Row],[Trenutno obdobje]]>OperatingExpenses[[#This Row],[Prejšnje obdobje]],ABS((OperatingExpenses[[#This Row],[Trenutno obdobje]]/OperatingExpenses[[#This Row],[Prejšnje obdobje]])-1),IF(AND(OperatingExpenses[[#This Row],[Trenutno obdobje]]<OperatingExpenses[[#This Row],[Prejšnje obdobje]],OperatingExpenses[[#This Row],[Prejšnje obdobje]]<0),-((OperatingExpenses[[#This Row],[Trenutno obdobje]]/OperatingExpenses[[#This Row],[Prejšnje obdobje]])-1),(OperatingExpenses[[#This Row],[Trenutno obdobje]]/OperatingExpenses[[#This Row],[Prejšnje obdobje]])-1))),\"-\")","v":{"v":0,"d":"0.00%"}},{"$f":"IFERROR(IF(OperatingExpenses[[#This Row],[Proračun]]=OperatingExpenses[[#This Row],[Trenutno obdobje]],0,IF(OperatingExpenses[[#This Row],[Trenutno obdobje]]>OperatingExpenses[[#This Row],[Proračun]],ABS((OperatingExpenses[[#This Row],[Trenutno obdobje]]/OperatingExpenses[[#This Row],[Proračun]])-1),IF(AND(OperatingExpenses[[#This Row],[Trenutno obdobje]]<OperatingExpenses[[#This Row],[Proračun]],OperatingExpenses[[#This Row],[Proračun]]<0),-((OperatingExpenses[[#This Row],[Trenutno obdobje]]/OperatingExpenses[[#This Row],[Proračun]])-1),(OperatingExpenses[[#This Row],[Trenutno obdobje]]/OperatingExpenses[[#This Row],[Proračun]])-1))),\"-\")","v":{"v":0,"d":"0.00%"}}]
[null,"Splošno in administracija","Popravila in vzdrževanje",{"$nulls":3},{"$f":"IFERROR(IF(Prihodek_od_prodaje=0,\"-\",OperatingExpenses[[#This Row],[Trenutno obdobje]]/Prihodek_od_prodaje),\"-\")","v":"-"},{"$f":"IFERROR(IF(OperatingExpenses[[#This Row],[Prejšnje obdobje]]=OperatingExpenses[[#This Row],[Trenutno obdobje]],0,IF(OperatingExpenses[[#This Row],[Trenutno obdobje]]>OperatingExpenses[[#This Row],[Prejšnje obdobje]],ABS((OperatingExpenses[[#This Row],[Trenutno obdobje]]/OperatingExpenses[[#This Row],[Prejšnje obdobje]])-1),IF(AND(OperatingExpenses[[#This Row],[Trenutno obdobje]]<OperatingExpenses[[#This Row],[Prejšnje obdobje]],OperatingExpenses[[#This Row],[Prejšnje obdobje]]<0),-((OperatingExpenses[[#This Row],[Trenutno obdobje]]/OperatingExpenses[[#This Row],[Prejšnje obdobje]])-1),(OperatingExpenses[[#This Row],[Trenutno obdobje]]/OperatingExpenses[[#This Row],[Prejšnje obdobje]])-1))),\"-\")","v":{"v":0,"d":"0.00%"}},{"$f":"IFERROR(IF(OperatingExpenses[[#This Row],[Proračun]]=OperatingExpenses[[#This Row],[Trenutno obdobje]],0,IF(OperatingExpenses[[#This Row],[Trenutno obdobje]]>OperatingExpenses[[#This Row],[Proračun]],ABS((OperatingExpenses[[#This Row],[Trenutno obdobje]]/OperatingExpenses[[#This Row],[Proračun]])-1),IF(AND(OperatingExpenses[[#This Row],[Trenutno obdobje]]<OperatingExpenses[[#This Row],[Proračun]],OperatingExpenses[[#This Row],[Proračun]]<0),-((OperatingExpenses[[#This Row],[Trenutno obdobje]]/OperatingExpenses[[#This Row],[Proračun]])-1),(OperatingExpenses[[#This Row],[Trenutno obdobje]]/OperatingExpenses[[#This Row],[Proračun]])-1))),\"-\")","v":{"v":0,"d":"0.00%"}}]
[null,"Splošno in administracija","Drugi stroški (navedite)",{"$nulls":3},{"$f":"IFERROR(IF(Prihodek_od_prodaje=0,\"-\",OperatingExpenses[[#This Row],[Trenutno obdobje]]/Prihodek_od_prodaje),\"-\")","v":"-"},{"$f":"IFERROR(IF(OperatingExpenses[[#This Row],[Prejšnje obdobje]]=OperatingExpenses[[#This Row],[Trenutno obdobje]],0,IF(OperatingExpenses[[#This Row],[Trenutno obdobje]]>OperatingExpenses[[#This Row],[Prejšnje obdobje]],ABS((OperatingExpenses[[#This Row],[Trenutno obdobje]]/OperatingExpenses[[#This Row],[Prejšnje obdobje]])-1),IF(AND(OperatingExpenses[[#This Row],[Trenutno obdobje]]<OperatingExpenses[[#This Row],[Prejšnje obdobje]],OperatingExpenses[[#This Row],[Prejšnje obdobje]]<0),-((OperatingExpenses[[#This Row],[Trenutno obdobje]]/OperatingExpenses[[#This Row],[Prejšnje obdobje]])-1),(OperatingExpenses[[#This Row],[Trenutno obdobje]]/OperatingExpenses[[#This Row],[Prejšnje obdobje]])-1))),\"-\")","v":{"v":0,"d":"0.00%"}},{"$f":"IFERROR(IF(OperatingExpenses[[#This Row],[Proračun]]=OperatingExpenses[[#This Row],[Trenutno obdobje]],0,IF(OperatingExpenses[[#This Row],[Trenutno obdobje]]>OperatingExpenses[[#This Row],[Proračun]],ABS((OperatingExpenses[[#This Row],[Trenutno obdobje]]/OperatingExpenses[[#This Row],[Proračun]])-1),IF(AND(OperatingExpenses[[#This Row],[Trenutno obdobje]]<OperatingExpenses[[#This Row],[Proračun]],OperatingExpenses[[#This Row],[Proračun]]<0),-((OperatingExpenses[[#This Row],[Trenutno obdobje]]/OperatingExpenses[[#This Row],[Proračun]])-1),(OperatingExpenses[[#This Row],[Trenutno obdobje]]/OperatingExpenses[[#This Row],[Proračun]])-1))),\"-\")","v":{"v":0,"d":"0.00%"}}]
[null,"Splošno in administracija","Drugi stroški (navedite)",{"$nulls":3},{"$f":"IFERROR(IF(Prihodek_od_prodaje=0,\"-\",OperatingExpenses[[#This Row],[Trenutno obdobje]]/Prihodek_od_prodaje),\"-\")","v":"-"},{"$f":"IFERROR(IF(OperatingExpenses[[#This Row],[Prejšnje obdobje]]=OperatingExpenses[[#This Row],[Trenutno obdobje]],0,IF(OperatingExpenses[[#This Row],[Trenutno obdobje]]>OperatingExpenses[[#This Row],[Prejšnje obdobje]],ABS((OperatingExpenses[[#This Row],[Trenutno obdobje]]/OperatingExpenses[[#This Row],[Prejšnje obdobje]])-1),IF(AND(OperatingExpenses[[#This Row],[Trenutno obdobje]]<OperatingExpenses[[#This Row],[Prejšnje obdobje]],OperatingExpenses[[#This Row],[Prejšnje obdobje]]<0),-((OperatingExpenses[[#This Row],[Trenutno obdobje]]/OperatingExpenses[[#This Row],[Prejšnje obdobje]])-1),(OperatingExpenses[[#This Row],[Trenutno obdobje]]/OperatingExpenses[[#This Row],[Prejšnje obdobje]])-1))),\"-\")","v":{"v":0,"d":"0.00%"}},{"$f":"IFERROR(IF(OperatingExpenses[[#This Row],[Proračun]]=OperatingExpenses[[#This Row],[Trenutno obdobje]],0,IF(OperatingExpenses[[#This Row],[Trenutno obdobje]]>OperatingExpenses[[#This Row],[Proračun]],ABS((OperatingExpenses[[#This Row],[Trenutno obdobje]]/OperatingExpenses[[#This Row],[Proračun]])-1),IF(AND(OperatingExpenses[[#This Row],[Trenutno obdobje]]<OperatingExpenses[[#This Row],[Proračun]],OperatingExpenses[[#This Row],[Proračun]]<0),-((OperatingExpenses[[#This Row],[Trenutno obdobje]]/OperatingExpenses[[#This Row],[Proračun]])-1),(OperatingExpenses[[#This Row],[Trenutno obdobje]]/OperatingExpenses[[#This Row],[Proračun]])-1))),\"-\")","v":{"v":0,"d":"0.00%"}}]
[null,"Skupni operativni stroški",null,{"$f":"SUBTOTAL(109,OperatingExpenses[Prejšnje obdobje])","v":0},{"$f":"SUBTOTAL(109,OperatingExpenses[Proračun])","v":0},{"$f":"SUBTOTAL(109,OperatingExpenses[Trenutno obdobje])","v":0},{"$f":"SUBTOTAL(109,OperatingExpenses[Trenutno obdobje kot % prodaje])","v":{"v":0,"d":"0.00%"}},{"$f":"SUBTOTAL(109,OperatingExpenses[% spremembe od prejšnjega obdobja])","v":{"v":0,"d":"0.00%"}},{"$f":"SUBTOTAL(109,OperatingExpenses[% spremembe od proračuna])","v":{"v":0,"d":"0.00%"}}]

{"sheet":"Davki","index":4,"n_rows":10,"n_cols":9,"rows_kept":10,"merged":[[0,7,2,8]]}
[null,{"$f":"Naslov_delovnega_zvezka","v":"Bilanca uspeha"}]
[null,{"$f":"Ime_podjetja","v":"Ime podjetja"},"Navedeno v 000"]
[null,"Davki",{"$f":"IFERROR(Davki[[#Totals],[Trenutno obdobje]],\"-\")","v":0}]
[null,"Vrsta","Opis","Prejšnje obdobje","Proračun","Trenutno obdobje","Trenutno obdobje kot % prodaje","% spremembe od prejšnjega obdobja","% spremembe od proračuna"]
[null,"Davki","Davek na dohodek",{"$nulls":3},{"$f":"IFERROR(IF(Prihodek_od_prodaje=0,\"-\",Davki[[#This Row],[Trenutno obdobje]]/Prihodek_od_prodaje),\"-\")","v":"-"},{"$f":"IFERROR(IF(Davki[[#This Row],[Prejšnje obdobje]]=Davki[[#This Row],[Trenutno obdobje]],0,IF(Davki[[#This Row],[Trenutno obdobje]]>Davki[[#This Row],[Prejšnje obdobje]],ABS((Davki[[#This Row],[Trenutno obdobje]]/Davki[[#This Row],[Prejšnje obdobje]])-1),IF(AND(Davki[[#This Row],[Trenutno obdobje]]<Davki[[#This Row],[Prejšnje obdobje]],Davki[[#This Row],[Prejšnje obdobje]]<0),-((Davki[[#This Row],[Trenutno obdobje]]/Davki[[#This Row],[Prejšnje obdobje]])-1),(Davki[[#This Row],[Trenutno obdobje]]/Davki[[#This Row],[Prejšnje obdobje]])-1))),\"-\")","v":{"v":0,"d":"0.00%"}},{"$f":"IFERROR(IF(Davki[[#This Row],[Proračun]]=Davki[[#This Row],[Trenutno obdobje]],0,IF(Davki[[#This Row],[Trenutno obdobje]]>Davki[[#This Row],[Proračun]],ABS((Davki[[#This Row],[Trenutno obdobje]]/Davki[[#This Row],[Proračun]])-1),IF(AND(Davki[[#This Row],[Trenutno obdobje]]<Davki[[#This Row],[Proračun]],Davki[[#This Row],[Proračun]]<0),-((Davki[[#This Row],[Trenutno obdobje]]/Davki[[#This Row],[Proračun]])-1),(Davki[[#This Row],[Trenutno obdobje]]/Davki[[#This Row],[Proračun]])-1))),\"-\")","v":{"v":0,"d":"0.00%"}}]
[null,"Davki","Davki na plače",{"$nulls":3},{"$f":"IFERROR(IF(Prihodek_od_prodaje=0,\"-\",Davki[[#This Row],[Trenutno obdobje]]/Prihodek_od_prodaje),\"-\")","v":"-"},{"$f":"IFERROR(IF(Davki[[#This Row],[Prejšnje obdobje]]=Davki[[#This Row],[Trenutno obdobje]],0,IF(Davki[[#This Row],[Trenutno obdobje]]>Davki[[#This Row],[Prejšnje obdobje]],ABS((Davki[[#This Row],[Trenutno obdobje]]/Davki[[#This Row],[Prejšnje obdobje]])-1),IF(AND(Davki[[#This Row],[Trenutno obdobje]]<Davki[[#This Row],[Prejšnje obdobje]],Davki[[#This Row],[Prejšnje obdobje]]<0),-((Davki[[#This Row],[Trenutno obdobje]]/Davki[[#This Row],[Prejšnje obdobje]])-1),(Davki[[#This Row],[Trenutno obdobje]]/Davki[[#This Row],[Prejšnje obdobje]])-1))),\"-\")","v":{"v":0,"d":"0.00%"}},{"$f":"IFERROR(IF(Davki[[#This Row],[Proračun]]=Davki[[#This Row],[Trenutno obdobje]],0,IF(Davki[[#This Row],[Trenutno obdobje]]>Davki[[#This Row],[Proračun]],ABS((Davki[[#This Row],[Trenutno obdobje]]/Davki[[#This Row],[Proračun]])-1),IF(AND(Davki[[#This Row],[Trenutno obdobje]]<Davki[[#This Row],[Proračun]],Davki[[#This Row],[Proračun]]<0),-((Davki[[#This Row],[Trenutno obdobje]]/Davki[[#This Row],[Proračun]])-1),(Davki[[#This Row],[Trenutno obdobje]]/Davki[[#This Row],[Proračun]])-1))),\"-\")","v":{"v":0,"d":"0.00%"}}]
[null,"Davki","Nepremičninski davki",{"$nulls":3},{"$f":"IFERROR(IF(Prihodek_od_prodaje=0,\"-\",Davki[[#This Row],[Trenutno obdobje]]/Prihodek_od_prodaje),\"-\")","v":"-"},{"$f":"IFERROR(IF(Davki[[#This Row],[Prejšnje obdobje]]=Davki[[#This Row],[Trenutno obdobje]],0,IF(Davki[[#This Row],[Trenutno obdobje]]>Davki[[#This Row],[Prejšnje obdobje]],ABS((Davki[[#This Row],[Trenutno obdobje]]/Davki[[#This Row],[Prejšnje obdobje]])-1),IF(AND(Davki[[#This Row],[Trenutno obdobje]]<Davki[[#This Row],[Prejšnje obdobje]],Davki[[#This Row],[Prejšnje obdobje]]<0),-((Davki[[#This Row],[Trenutno obdobje]]/Davki[[#This Row],[Prejšnje obdobje]])-1),(Davki[[#This Row],[Trenutno obdobje]]/Davki[[#This Row],[Prejšnje obdobje]])-1))),\"-\")","v":{"v":0,"d":"0.00%"}},{"$f":"IFERROR(IF(Davki[[#This Row],[Proračun]]=Davki[[#This Row],[Trenutno obdobje]],0,IF(Davki[[#This Row],[Trenutno obdobje]]>Davki[[#This Row],[Proračun]],ABS((Davki[[#This Row],[Trenutno obdobje]]/Davki[[#This Row],[Proračun]])-1),IF(AND(Davki[[#This Row],[Trenutno obdobje]]<Davki[[#This Row],[Proračun]],Davki[[#This Row],[Proračun]]<0),-((Davki[[#This Row],[Trenutno obdobje]]/Davki[[#This Row],[Proračun]])-1),(Davki[[#This Row],[Trenutno obdobje]]/Davki[[#This Row],[Proračun]])-1))),\"-\")","v":{"v":0,"d":"0.00%"}}]
[null,"Davki","Drugi davki (navedite)",{"$nulls":3},{"$f":"IFERROR(IF(Prihodek_od_prodaje=0,\"-\",Davki[[#This Row],[Trenutno obdobje]]/Prihodek_od_prodaje),\"-\")","v":"-"},{"$f":"IFERROR(IF(Davki[[#This Row],[Prejšnje obdobje]]=Davki[[#This Row],[Trenutno obdobje]],0,IF(Davki[[#This Row],[Trenutno obdobje]]>Davki[[#This Row],[Prejšnje obdobje]],ABS((Davki[[#This Row],[Trenutno obdobje]]/Davki[[#This Row],[Prejšnje obdobje]])-1),IF(AND(Davki[[#This Row],[Trenutno obdobje]]<Davki[[#This Row],[Prejšnje obdobje]],Davki[[#This Row],[Prejšnje obdobje]]<0),-((Davki[[#This Row],[Trenutno obdobje]]/Davki[[#This Row],[Prejšnje obdobje]])-1),(Davki[[#This Row],[Trenutno obdobje]]/Davki[[#This Row],[Prejšnje obdobje]])-1))),\"-\")","v":{"v":0,"d":"0.00%"}},{"$f":"IFERROR(IF(Davki[[#This Row],[Proračun]]=Davki[[#This Row],[Trenutno obdobje]],0,IF(Davki[[#This Row],[Trenutno obdobje]]>Davki[[#This Row],[Proračun]],ABS((Davki[[#This Row],[Trenutno obdobje]]/Davki[[#This Row],[Proračun]])-1),IF(AND(Davki[[#This Row],[Trenutno obdobje]]<Davki[[#This Row],[Proračun]],Davki[[#This Row],[Proračun]]<0),-((Davki[[#This Row],[Trenutno obdobje]]/Davki[[#This Row],[Proračun]])-1),(Davki[[#This Row],[Trenutno obdobje]]/Davki[[#This Row],[Proračun]])-1))),\"-\")","v":{"v":0,"d":"0.00%"}}]
[null,"Davki","Drugi davki (navedite)",{"$nulls":3},{"$f":"IFERROR(IF(Prihodek_od_prodaje=0,\"-\",Davki[[#This Row],[Trenutno obdobje]]/Prihodek_od_prodaje),\"-\")","v":"-"},{"$f":"IFERROR(IF(Davki[[#This Row],[Prejšnje obdobje]]=Davki[[#This Row],[Trenutno obdobje]],0,IF(Davki[[#This Row],[Trenutno obdobje]]>Davki[[#This Row],[Prejšnje obdobje]],ABS((Davki[[#This Row],[Trenutno obdobje]]/Davki[[#This Row],[Prejšnje obdobje]])-1),IF(AND(Davki[[#This Row],[Trenutno obdobje]]<Davki[[#This Row],[Prejšnje obdobje]],Davki[[#This Row],[Prejšnje obdobje]]<0),-((Davki[[#This Row],[Trenutno obdobje]]/Davki[[#This Row],[Prejšnje obdobje]])-1),(Davki[[#This Row],[Trenutno obdobje]]/Davki[[#This Row],[Prejšnje obdobje]])-1))),\"-\")","v":{"v":0,"d":"0.00%"}},{"$f":"IFERROR(IF(Davki[[#This Row],[Proračun]]=Davki[[#This Row],[Trenutno obdobje]],0,IF(Davki[[#This Row],[Trenutno obdobje]]>Davki[[#This Row],[Proračun]],ABS((Davki[[#This Row],[Trenutno obdobje]]/Davki[[#This Row],[Proračun]])-1),IF(AND(Davki[[#This Row],[Trenutno obdobje]]<Davki[[#This Row],[Proračun]],Davki[[#This Row],[Proračun]]<0),-((Davki[[#This Row],[Trenutno obdobje]]/Davki[[#This Row],[Proračun]])-1),(Davki[[#This Row],[Trenutno obdobje]]/Davki[[#This Row],[Proračun]])-1))),\"-\")","v":{"v":0,"d":"0.00%"}}]
[null,"Skupaj davki",null,{"$f":"SUBTOTAL(109,Davki[Prejšnje obdobje])","v":0},{"$f":"SUBTOTAL(109,Davki[Proračun])","v":0},{"$f":"SUBTOTAL(109,Davki[Trenutno obdobje])","v":0},{"$f":"IFERROR(SUBTOTAL(109,Davki[Trenutno obdobje kot % prodaje]),\"-\")","v":{"v":0,"d":"0.00%"}},{"$f":"SUBTOTAL(109,Davki[% spremembe od prejšnjega obdobja])","v":{"v":0,"d":"0.00%"}},{"$f":"SUBTOTAL(109,Davki[% spremembe od proračuna])","v":{"v":0,"d":"0.00%"}}]

{"sheet":"Kategorije","index":5,"n_rows":8,"n_cols":2,"rows_kept":8}
[null,"Kategorije"]
[null,"Prihodek od prodaje"]
[null,"Stroški prodaje"]
[null,"Dohodek"]
[null,"Prodaja in trženje"]
[null,"Raziskave in razvoj"]
[null,"Splošno in administracija"]
[null,"Davki"]